{"text_format":"1","workbook":"xlsx","n_sheets":6,"sheets":["Résumé","Équipes","Collection","Recherche","Glossaire","Base de données"],"not_rendered":{"charts":0,"images":139,"macros":1,"external_links":0,"defined_names":14,"comments":0,"pivot_tables":0},"unopened":[],"bounds":{"document_bytes":16777216,"sheet_cells":100000,"rows_first":2000,"rows_last":500,"rows_between":2000,"halvings":0,"cell_chars":16384,"cell_head_chars":4096},"cells_cut":0,"cells_raw":0,"read":"whole","date_system":"1900"}

{"sheet":"Résumé","index":0,"n_rows":15,"n_cols":4,"rows_kept":15,"cut":false,"hidden":false,"merged":[[1,1,1,3]]}
[]
[null,"Ma Collection - Résumé"]
[]
[null,"Quantité de figurines :",{"$f":"COUNTIFS(Collection!F:F,\"<>\"&\"Token\",Collection!G:G,\"<>\"&\"\")-1","v":0},{"$f":"\"/ \"&COUNTIFS(Collection!F:F,\"<>\"&\"Token\",Collection!F:F,\"<>\"&\"\")-2","v":"/ 110"}]
[null,"Quantité de tokens :",{"$f":"COUNTIFS(Collection!F:F,\"Token\",Collection!G:G,\"<>\"&\"\")","v":0},{"$f":"\"/ \"&COUNTIFS(Collection!F:F,\"Token\",Collection!F:F,\"<>\"&\"\")","v":"/ 28"}]
[]
[null,"Figurines"]
[null,"Saison 1 :",{"$f":"COUNTIFS(Collection!F:F,\"<>\"&\"Token\",Collection!G:G,\"<>\"&\"\",Collection!E:E,\"Saison 1\")","v":0},{"$f":"\"/ \"&COUNTIFS(Collection!F:F,\"<>\"&\"Token\",Collection!E:E,\"Saison 1\")","v":"/ 53"}]
[null,"Saison 2 :",{"$f":"COUNTIFS(Collection!F:F,\"<>\"&\"Token\",Collection!G:G,\"<>\"&\"\",Collection!E:E,\"Saison 2\")","v":0},{"$f":"\"/ \"&COUNTIFS(Collection!F:F,\"<>\"&\"Token\",Collection!E:E,\"Saison 2\")","v":"/ 49"}]
[null,"Saison 3 :",{"$f":"COUNTIFS(Collection!F:F,\"<>\"&\"Token\",Collection!G:G,\"<>\"&\"\",Collection!E:E,\"Saison 3\")","v":0},{"$f":"\"/ \"&COUNTIFS(Collection!F:F,\"<>\"&\"Token\",Collection!E:E,\"Saison 3\")","v":"/ 8"}]
[]
[null,"Tokens"]
[null,"Saison 1 :",{"$f":"COUNTIFS(Collection!F:F,\"Token\",Collection!G:G,\"<>\"&\"\",Collection!E:E,\"Saison 1\")","v":0},{"$f":"\"/ \"&COUNTIFS(Collection!F:F,\"Token\",Collection!E:E,\"Saison 1\")","v":"/ 17"}]
[null,"Saison 2 :",{"$f":"COUNTIFS(Collection!F:F,\"Token\",Collection!G:G,\"<>\"&\"\",Collection!E:E,\"Saison 2\")","v":0},{"$f":"\"/ \"&COUNTIFS(Collection!F:F,\"Token\",Collection!E:E,\"Saison 2\")","v":"/ 11"}]
[null,"Saison 3 :",{"$f":"COUNTIFS(Collection!F:F,\"Token\",Collection!G:G,\"<>\"&\"\",Collection!E:E,\"Saison 3\")","v":0},{"$f":"\"/ \"&COUNTIFS(Collection!F:F,\"Token\",Collection!E:E,\"Saison 3\")","v":"/ 0"}]

{"sheet":"Équipes","index":1,"n_rows":53,"n_cols":19,"rows_kept":53,"cut":false,"hidden":false,"merged":[[42,1,42,9],[52,5,52,9],[39,5,39,9],[0,1,1,9],[3,1,3,9],[16,1,16,9],[29,1,29,9],[13,5,13,9],[26,5,26,9]]}
[null,"Création d'équipes"]
[]
[]
[null,"Équipe 1"]
[null,"Nom","Classe","Niveau","Initiative","PM","PV","PA","Pouvoirs","Rareté",null,"Quantité","Commune","Rare","Spéciale","Boss","Doublons","Bannies","Bandits"]
[null,null,{"$f":"IF(B6=\"\",\"\",(VLOOKUP(B6,'Base de données'!$B$1:$AV$2000,2,FALSE)))","v":""},{"$f":"IF(B6=\"\",\"\",(VLOOKUP(B6,'Base de données'!$B$1:$AV$2000,3,FALSE)))","v":""},{"$f":"IF(B6=\"\",\"\",(VLOOKUP(B6,'Base de données'!$B$1:$AV$2000,4,FALSE)))","v":""},{"$f":"IF(B6=\"\",\"\",(VLOOKUP(B6,'Base de données'!$B$1:$AV$2000,5,FALSE)))","v":""},{"$f":"IF(B6=\"\",\"\",(VLOOKUP(B6,'Base de données'!$B$1:$AV$2000,6,FALSE)))","v":""},{"$f":"IF(B6=\"\",\"\",(VLOOKUP(B6,'Base de données'!$B$1:$AV$2000,7,FALSE)))","v":""},{"$f":"IF(B6=\"\",\"\",(VLOOKUP(B6,'Base de données'!$B$1:$AV$2000,44,FALSE)))","v":""},{"$f":"IF(B6=\"\",\"\",(VLOOKUP(B6,'Base de données'!$B$1:$AV$2000,47,FALSE)))","v":""},null,{"$f":"COUNTIFS($B$6:$B$13,B6,$J$6:$J$13,J6)","v":0},{"$f":"IF(AND($J$6=\"Commune\",$L$6>2),\"Erreur\",\"Ok\")","v":"Ok"},{"$f":"IF(AND($J$6=\"Rare\",$L$6>1),\"Erreur\",\"Ok\")","v":"Ok"},{"$f":"IF(AND($J$6=\"Spéciale\",$L$6>3),\"Erreur\",\"Ok\")","v":"Ok"},{"$f":"IF(COUNTIF(C6,\"*Boss*\")>0,\"Boss\",\"Ok\")","v":"Ok"},{"$f":"IF(COUNTIF(B6:B13,\"*Adamaï*\")>1,\"Trop de Adamaï\",\"Ok\")","v":"Ok"},{"$f":"IF(COUNTIF(B6:B13,\"*Liane Zolie*\")>0,\"Liane Zolie Bannie\",\"Ok\")","v":"Ok"},{"$f":"IF(COUNTIF(C6:C13,\"*bandit*\")>4,\"Ok\",\"Pas assez\")","v":"Pas assez"}]
[null,null,{"$f":"IF(B7=\"\",\"\",(VLOOKUP(B7,'Base de données'!$B$1:$AV$2000,2,FALSE)))","v":""},{"$f":"IF(B7=\"\",\"\",(VLOOKUP(B7,'Base de données'!$B$1:$AV$2000,3,FALSE)))","v":""},{"$f":"IF(B7=\"\",\"\",(VLOOKUP(B7,'Base de données'!$B$1:$AV$2000,4,FALSE)))","v":""},{"$f":"IF(B7=\"\",\"\",(VLOOKUP(B7,'Base de données'!$B$1:$AV$2000,5,FALSE)))","v":""},{"$f":"IF(B7=\"\",\"\",(VLOOKUP(B7,'Base de données'!$B$1:$AV$2000,6,FALSE)))","v":""},{"$f":"IF(B7=\"\",\"\",(VLOOKUP(B7,'Base de données'!$B$1:$AV$2000,7,FALSE)))","v":""},{"$f":"IF(B7=\"\",\"\",(VLOOKUP(B7,'Base de données'!$B$1:$AV$2000,44,FALSE)))","v":""},{"$f":"IF(B7=\"\",\"\",(VLOOKUP(B7,'Base de données'!$B$1:$AV$2000,47,FALSE)))","v":""},null,0,{"$f":"IF(AND($J$7=\"Commune\",$L$7>2),\"Erreur\",\"Ok\")","v":"Ok"},{"$f":"IF(AND($J$7=\"Rare\",$L$7>1),\"Erreur\",\"Ok\")","v":"Ok"},{"$f":"IF(AND($J$7=\"Spéciale\",$L$7>3),\"Erreur\",\"Ok\")","v":"Ok"},{"$f":"IF(COUNTIF(C7,\"*Boss*\")>0,\"Boss\",\"Ok\")","v":"Ok"},{"$f":"IF(COUNTIF(B6:B13,\"*Yugo*\")>1,\"Trop de Yugo\",\"Ok\")","v":"Ok"},{"$f":"IF(COUNTIF(B6:B13,\"*Terminatot Gaulde*\")>0,\"Terminatot Gaulde Bannie\",\"Ok\")","v":"Ok"},{"$f":"IF(SUM(D6:D13)>14,\"Trop haut\",\"Ok\")","v":"Ok"}]
[null,null,{"$f":"IF(B8=\"\",\"\",(VLOOKUP(B8,'Base de données'!$B$1:$AV$2000,2,FALSE)))","v":""},{"$f":"IF(B8=\"\",\"\",(VLOOKUP(B8,'Base de données'!$B$1:$AV$2000,3,FALSE)))","v":""},{"$f":"IF(B8=\"\",\"\",(VLOOKUP(B8,'Base de données'!$B$1:$AV$2000,4,FALSE)))","v":""},{"$f":"IF(B8=\"\",\"\",(VLOOKUP(B8,'Base de données'!$B$1:$AV$2000,5,FALSE)))","v":""},{"$f":"IF(B8=\"\",\"\",(VLOOKUP(B8,'Base de données'!$B$1:$AV$2000,6,FALSE)))","v":""},{"$f":"IF(B8=\"\",\"\",(VLOOKUP(B8,'Base de données'!$B$1:$AV$2000,7,FALSE)))","v":""},{"$f":"IF(B8=\"\",\"\",(VLOOKUP(B8,'Base de données'!$B$1:$AV$2000,44,FALSE)))","v":""},{"$f":"IF(B8=\"\",\"\",(VLOOKUP(B8,'Base de données'!$B$1:$AV$2000,47,FALSE)))","v":""},null,0,{"$f":"IF(AND($J$8=\"Commune\",$L$8>2),\"Erreur\",\"Ok\")","v":"Ok"},{"$f":"IF(AND($J$8=\"Rare\",$L$8>1),\"Erreur\",\"Ok\")","v":"Ok"},{"$f":"IF(AND($J$8=\"Spéciale\",$L$8>3),\"Erreur\",\"Ok\")","v":"Ok"},"Ok",{"$f":"IF(COUNTIF(B6:B13,\"*Tristepin*\")>1,\"Trop de Tristepin\",\"Ok\")","v":"Ok"},null,{"$f":"IF(SUMIF(C6:C13,\"bandit\",D6:D13)<12,\"Pas assez\",\"Ok\")","v":"Pas assez"}]
[null,null,{"$f":"IF(B9=\"\",\"\",(VLOOKUP(B9,'Base de données'!$B$1:$AV$2000,2,FALSE)))","v":""},{"$f":"IF(B9=\"\",\"\",(VLOOKUP(B9,'Base de données'!$B$1:$AV$2000,3,FALSE)))","v":""},{"$f":"IF(B9=\"\",\"\",(VLOOKUP(B9,'Base de données'!$B$1:$AV$2000,4,FALSE)))","v":""},{"$f":"IF(B9=\"\",\"\",(VLOOKUP(B9,'Base de données'!$B$1:$AV$2000,5,FALSE)))","v":""},{"$f":"IF(B9=\"\",\"\",(VLOOKUP(B9,'Base de données'!$B$1:$AV$2000,6,FALSE)))","v":""},{"$f":"IF(B9=\"\",\"\",(VLOOKUP(B9,'Base de données'!$B$1:$AV$2000,7,FALSE)))","v":""},{"$f":"IF(B9=\"\",\"\",(VLOOKUP(B9,'Base de données'!$B$1:$AV$2000,44,FALSE)))","v":""},{"$f":"IF(B9=\"\",\"\",(VLOOKUP(B9,'Base de données'!$B$1:$AV$2000,47,FALSE)))","v":""},null,0,{"$f":"IF(AND($J$9=\"Commune\",$L$9>2),\"Erreur\",\"Ok\")","v":"Ok"},{"$f":"IF(AND($J$9=\"Rare\",$L$9>1),\"Erreur\",\"Ok\")","v":"Ok"},{"$f":"IF(AND($J$9=\"Spéciale\",$L$9>3),\"Erreur\",\"Ok\")","v":"Ok"},"Ok",{"$f":"IF(COUNTIF(B6:B13,\"*Qilby*\")>1,\"Trop de Qilby\",\"Ok\")","v":"Ok"},null,{"$f":"IF(COUNTIF(B6:B13,\"Riktus Elite\")<1,\"Sans Élite\",\"Ok\")","v":"Sans Élite"}]
[null,null,{"$f":"IF(B10=\"\",\"\",(VLOOKUP(B10,'Base de données'!$B$1:$AV$2000,2,FALSE)))","v":""},{"$f":"IF(B10=\"\",\"\",(VLOOKUP(B10,'Base de données'!$B$1:$AV$2000,3,FALSE)))","v":""},{"$f":"IF(B10=\"\",\"\",(VLOOKUP(B10,'Base de données'!$B$1:$AV$2000,4,FALSE)))","v":""},{"$f":"IF(B10=\"\",\"\",(VLOOKUP(B10,'Base de données'!$B$1:$AV$2000,5,FALSE)))","v":""},{"$f":"IF(B10=\"\",\"\",(VLOOKUP(B10,'Base de données'!$B$1:$AV$2000,6,FALSE)))","v":""},{"$f":"IF(B10=\"\",\"\",(VLOOKUP(B10,'Base de données'!$B$1:$AV$2000,7,FALSE)))","v":""},{"$f":"IF(B10=\"\",\"\",(VLOOKUP(B10,'Base de données'!$B$1:$AV$2000,44,FALSE)))","v":""},{"$f":"IF(B10=\"\",\"\",(VLOOKUP(B10,'Base de données'!$B$1:$AV$2000,47,FALSE)))","v":""},null,0,{"$f":"IF(AND($J$10=\"Commune\",$L$10>2),\"Erreur\",\"Ok\")","v":"Ok"},{"$f":"IF(AND($J$10=\"Rare\",$L$10>1),\"Erreur\",\"Ok\")","v":"Ok"},{"$f":"IF(AND($J$10=\"Spéciale\",$L$10>3),\"Erreur\",\"Ok\")","v":"Ok"},"Ok"]
[null,null,{"$f":"IF(B11=\"\",\"\",(VLOOKUP(B11,'Base de données'!$B$1:$AV$2000,2,FALSE)))","v":""},{"$f":"IF(B11=\"\",\"\",(VLOOKUP(B11,'Base de données'!$B$1:$AV$2000,3,FALSE)))","v":""},{"$f":"IF(B11=\"\",\"\",(VLOOKUP(B11,'Base de données'!$B$1:$AV$2000,4,FALSE)))","v":""},{"$f":"IF(B11=\"\",\"\",(VLOOKUP(B11,'Base de données'!$B$1:$AV$2000,5,FALSE)))","v":""},{"$f":"IF(B11=\"\",\"\",(VLOOKUP(B11,'Base de données'!$B$1:$AV$2000,6,FALSE)))","v":""},{"$f":"IF(B11=\"\",\"\",(VLOOKUP(B11,'Base de données'!$B$1:$AV$2000,7,FALSE)))","v":""},{"$f":"IF(B11=\"\",\"\",(VLOOKUP(B11,'Base de données'!$B$1:$AV$2000,44,FALSE)))","v":""},{"$f":"IF(B11=\"\",\"\",(VLOOKUP(B11,'Base de données'!$B$1:$AV$2000,47,FALSE)))","v":""},null,0,{"$f":"IF(AND($J$11=\"Commune\",$L$11>2),\"Erreur\",\"Ok\")","v":"Ok"},{"$f":"IF(AND($J$11=\"Rare\",$L$11>1),\"Erreur\",\"Ok\")","v":"Ok"},{"$f":"IF(AND($J$11=\"Spéciale\",$L$11>3),\"Erreur\",\"Ok\")","v":"Ok"},"Ok"]
[null,null,{"$f":"IF(B12=\"\",\"\",(VLOOKUP(B12,'Base de données'!$B$1:$AV$2000,2,FALSE)))","v":""},{"$f":"IF(B12=\"\",\"\",(VLOOKUP(B12,'Base de données'!$B$1:$AV$2000,3,FALSE)))","v":""},{"$f":"IF(B12=\"\",\"\",(VLOOKUP(B12,'Base de données'!$B$1:$AV$2000,4,FALSE)))","v":""},{"$f":"IF(B12=\"\",\"\",(VLOOKUP(B12,'Base de données'!$B$1:$AV$2000,5,FALSE)))","v":""},{"$f":"IF(B12=\"\",\"\",(VLOOKUP(B12,'Base de données'!$B$1:$AV$2000,6,FALSE)))","v":""},{"$f":"IF(B12=\"\",\"\",(VLOOKUP(B12,'Base de données'!$B$1:$AV$2000,7,FALSE)))","v":""},{"$f":"IF(B12=\"\",\"\",(VLOOKUP(B12,'Base de données'!$B$1:$AV$2000,44,FALSE)))","v":""},{"$f":"IF(B12=\"\",\"\",(VLOOKUP(B12,'Base de données'!$B$1:$AV$2000,47,FALSE)))","v":""},null,0,{"$f":"IF(AND($J$12=\"Commune\",$L$12>2),\"Erreur\",\"Ok\")","v":"Ok"},{"$f":"IF(AND($J$12=\"Rare\",$L$12>1),\"Erreur\",\"Ok\")","v":"Ok"},{"$f":"IF(AND($J$12=\"Spéciale\",$L$12>3),\"Erreur\",\"Ok\")","v":"Ok"},"Ok"]
[null,null,{"$f":"IF(B13=\"\",\"\",(VLOOKUP(B13,'Base de données'!$B$1:$AV$2000,2,FALSE)))","v":""},{"$f":"IF(B13=\"\",\"\",(VLOOKUP(B13,'Base de données'!$B$1:$AV$2000,3,FALSE)))","v":""},{"$f":"IF(B13=\"\",\"\",(VLOOKUP(B13,'Base de données'!$B$1:$AV$2000,4,FALSE)))","v":""},{"$f":"IF(B13=\"\",\"\",(VLOOKUP(B13,'Base de données'!$B$1:$AV$2000,5,FALSE)))","v":""},{"$f":"IF(B13=\"\",\"\",(VLOOKUP(B13,'Base de données'!$B$1:$AV$2000,6,FALSE)))","v":""},{"$f":"IF(B13=\"\",\"\",(VLOOKUP(B13,'Base de données'!$B$1:$AV$2000,7,FALSE)))","v":""},{"$f":"IF(B13=\"\",\"\",(VLOOKUP(B13,'Base de données'!$B$1:$AV$2000,44,FALSE)))","v":""},{"$f":"IF(B13=\"\",\"\",(VLOOKUP(B13,'Base de données'!$B$1:$AV$2000,47,FALSE)))","v":""},null,0,{"$f":"IF(AND($J$13=\"Commune\",$L$13>2),\"Erreur\",\"Ok\")","v":"Ok"},{"$f":"IF(AND($J$13=\"Rare\",$L$13>1),\"Erreur\",\"Ok\")","v":"Ok"},{"$f":"IF(AND($J$13=\"Spéciale\",$L$13>3),\"Erreur\",\"Ok\")","v":"Ok"},"Ok"]
[null,null,null,{"$f":"SUM(D6:D13)&\"/12\"","v":"0/12"},{"$f":"IF(S14=\"Exception001\",\"Exception001\",IF(D14<>\"12/12\",\"Erreur001\",IF(OR(M14=\"Erreur002\",N14=\"Erreur002\",O14=\"Erreur002\"),\"Erreur002\",IF(P14=\"Erreur003\",\"Erreur003\",IF(Q14=\"Erreur004\",\"Erreur004\",IF(R14=\"Erreur005\",\"Erreur005\",\"Équipe prête\"))))))","v":"Erreur001"},{"$f":"IF(E14=\"Équipe prête\",\"\",VLOOKUP(E14,Glossaire!B1:C500,2,FALSE))","v":"Vous n'avez pas le bon nombre de niveaux"},null,null,null,null,null,"Résultat :",{"$f":"IF(COUNTIF($M$6:$M$13,\"Erreur\")>0,\"Erreur002\",\"Ok\")","v":"Ok"},{"$f":"IF(COUNTIF($N$6:$N$13,\"Erreur\")>0,\"Erreur002\",\"Ok\")","v":"Ok"},{"$f":"IF(COUNTIF($O$6:$O$13,\"Erreur\")>0,\"Erreur002\",\"Ok\")","v":"Ok"},{"$f":"IF(COUNTIF($P$6:$P$13,\"Boss\")>1,\"Erreur003\",\"Ok\")","v":"Ok"},{"$f":"IF(COUNTIF($Q$6:$Q$13,\"Ok\")<4,\"Erreur004\",\"Ok\")","v":"Ok"},{"$f":"IF(COUNTIF($R$6:$R$13,\"Ok\")<2,\"Erreur005\",\"Ok\")","v":"Ok"},{"$f":"IF(COUNTIF(S6:S13,\"Ok\")<4,\"Ok\",\"Exception001\")","v":"Ok"}]
[]
[]
[null,"Équipe 2"]
[null,"Nom","Classe","Niveau","Initiative","PM","PV","PA","Pouvoirs","Rareté",null,"Quantité","Commune","Rare","Spéciale","Boss","Doublons","Bannies","Bandits"]
[null,null,{"$f":"IF(B19=\"\",\"\",(VLOOKUP(B19,'Base de données'!$B$1:$AV$2000,2,FALSE)))","v":""},{"$f":"IF(B19=\"\",\"\",(VLOOKUP(B19,'Base de données'!$B$1:$AV$2000,3,FALSE)))","v":""},{"$f":"IF(B19=\"\",\"\",(VLOOKUP(B19,'Base de données'!$B$1:$AV$2000,4,FALSE)))","v":""},{"$f":"IF(B19=\"\",\"\",(VLOOKUP(B19,'Base de données'!$B$1:$AV$2000,5,FALSE)))","v":""},{"$f":"IF(B19=\"\",\"\",(VLOOKUP(B19,'Base de données'!$B$1:$AV$2000,6,FALSE)))","v":""},{"$f":"IF(B19=\"\",\"\",(VLOOKUP(B19,'Base de données'!$B$1:$AV$2000,7,FALSE)))","v":""},{"$f":"IF(B19=\"\",\"\",(VLOOKUP(B19,'Base de données'!$B$1:$AV$2000,44,FALSE)))","v":""},{"$f":"IF(B19=\"\",\"\",(VLOOKUP(B19,'Base de données'!$B$1:$AV$2000,47,FALSE)))","v":""},null,{"$f":"COUNTIFS($B$19:$B$26,B19,$J$19:$J$26,J19)","v":0},{"$f":"IF(AND($J$19=\"Commune\",$L$19>2),\"Erreur\",\"Ok\")","v":"Ok"},{"$f":"IF(AND($J$19=\"Rare\",$L$19>1),\"Erreur\",\"Ok\")","v":"Ok"},{"$f":"IF(AND($J$19=\"Spéciale\",$L$19>3),\"Erreur\",\"Ok\")","v":"Ok"},{"$f":"IF(COUNTIF(C19,\"*Boss*\")>0,\"Boss\",\"Ok\")","v":"Ok"},{"$f":"IF(COUNTIF(B19:B26,\"*Adamaï*\")>1,\"Trop de Adamaï\",\"Ok\")","v":"Ok"},{"$f":"IF(COUNTIF(B19:B26,\"*Liane Zolie*\")>0,\"Liane Zolie Bannie\",\"Ok\")","v":"Ok"},{"$f":"IF(COUNTIF(C19:C26,\"*bandit*\")>4,\"Ok\",\"Pas assez\")","v":"Pas assez"}]
[null,null,{"$f":"IF(B20=\"\",\"\",(VLOOKUP(B20,'Base de données'!$B$1:$AV$2000,2,FALSE)))","v":""},{"$f":"IF(B20=\"\",\"\",(VLOOKUP(B20,'Base de données'!$B$1:$AV$2000,3,FALSE)))","v":""},{"$f":"IF(B20=\"\",\"\",(VLOOKUP(B20,'Base de données'!$B$1:$AV$2000,4,FALSE)))","v":""},{"$f":"IF(B20=\"\",\"\",(VLOOKUP(B20,'Base de données'!$B$1:$AV$2000,5,FALSE)))","v":""},{"$f":"IF(B20=\"\",\"\",(VLOOKUP(B20,'Base de données'!$B$1:$AV$2000,6,FALSE)))","v":""},{"$f":"IF(B20=\"\",\"\",(VLOOKUP(B20,'Base de données'!$B$1:$AV$2000,7,FALSE)))","v":""},{"$f":"IF(B20=\"\",\"\",(VLOOKUP(B20,'Base de données'!$B$1:$AV$2000,44,FALSE)))","v":""},{"$f":"IF(B20=\"\",\"\",(VLOOKUP(B20,'Base de données'!$B$1:$AV$2000,47,FALSE)))","v":""},null,0,{"$f":"IF(AND($J$20=\"Commune\",$L$20>2),\"Erreur\",\"Ok\")","v":"Ok"},{"$f":"IF(AND($J$20=\"Rare\",$L$20>1),\"Erreur\",\"Ok\")","v":"Ok"},{"$f":"IF(AND($J$20=\"Spéciale\",$L$20>3),\"Erreur\",\"Ok\")","v":"Ok"},{"$f":"IF(COUNTIF(C20,\"*Boss*\")>0,\"Boss\",\"Ok\")","v":"Ok"},{"$f":"IF(COUNTIF(B19:B26,\"*Yugo*\")>1,\"Trop de Yugo\",\"Ok\")","v":"Ok"},{"$f":"IF(COUNTIF(B19:B26,\"*Terminatot Gaulde*\")>0,\"Terminatot Gaulde Bannie\",\"Ok\")","v":"Ok"},{"$f":"IF(SUM(D19:D26)>14,\"Trop haut\",\"Ok\")","v":"Ok"}]
[null,null,{"$f":"IF(B21=\"\",\"\",(VLOOKUP(B21,'Base de données'!$B$1:$AV$2000,2,FALSE)))","v":""},{"$f":"IF(B21=\"\",\"\",(VLOOKUP(B21,'Base de données'!$B$1:$AV$2000,3,FALSE)))","v":""},{"$f":"IF(B21=\"\",\"\",(VLOOKUP(B21,'Base de données'!$B$1:$AV$2000,4,FALSE)))","v":""},{"$f":"IF(B21=\"\",\"\",(VLOOKUP(B21,'Base de données'!$B$1:$AV$2000,5,FALSE)))","v":""},{"$f":"IF(B21=\"\",\"\",(VLOOKUP(B21,'Base de données'!$B$1:$AV$2000,6,FALSE)))","v":""},{"$f":"IF(B21=\"\",\"\",(VLOOKUP(B21,'Base de données'!$B$1:$AV$2000,7,FALSE)))","v":""},{"$f":"IF(B21=\"\",\"\",(VLOOKUP(B21,'Base de données'!$B$1:$AV$2000,44,FALSE)))","v":""},{"$f":"IF(B21=\"\",\"\",(VLOOKUP(B21,'Base de données'!$B$1:$AV$2000,47,FALSE)))","v":""},null,0,{"$f":"IF(AND($J$21=\"Commune\",$L$21>2),\"Erreur\",\"Ok\")","v":"Ok"},{"$f":"IF(AND($J$21=\"Rare\",$L$21>1),\"Erreur\",\"Ok\")","v":"Ok"},{"$f":"IF(AND($J$21=\"Spéciale\",$L$21>3),\"Erreur\",\"Ok\")","v":"Ok"},"Ok",{"$f":"IF(COUNTIF(B19:B26,\"*Tristepin*\")>1,\"Trop de Tristepin\",\"Ok\")","v":"Ok"},null,{"$f":"IF(SUMIF(C19:C26,\"bandit\",D19:D26)<12,\"Pas assez\",\"Ok\")","v":"Pas assez"}]
[null,null,{"$f":"IF(B22=\"\",\"\",(VLOOKUP(B22,'Base de données'!$B$1:$AV$2000,2,FALSE)))","v":""},{"$f":"IF(B22=\"\",\"\",(VLOOKUP(B22,'Base de données'!$B$1:$AV$2000,3,FALSE)))","v":""},{"$f":"IF(B22=\"\",\"\",(VLOOKUP(B22,'Base de données'!$B$1:$AV$2000,4,FALSE)))","v":""},{"$f":"IF(B22=\"\",\"\",(VLOOKUP(B22,'Base de données'!$B$1:$AV$2000,5,FALSE)))","v":""},{"$f":"IF(B22=\"\",\"\",(VLOOKUP(B22,'Base de données'!$B$1:$AV$2000,6,FALSE)))","v":""},{"$f":"IF(B22=\"\",\"\",(VLOOKUP(B22,'Base de données'!$B$1:$AV$2000,7,FALSE)))","v":""},{"$f":"IF(B22=\"\",\"\",(VLOOKUP(B22,'Base de données'!$B$1:$AV$2000,44,FALSE)))","v":""},{"$f":"IF(B22=\"\",\"\",(VLOOKUP(B22,'Base de données'!$B$1:$AV$2000,47,FALSE)))","v":""},null,0,{"$f":"IF(AND($J$22=\"Commune\",$L$22>2),\"Erreur\",\"Ok\")","v":"Ok"},{"$f":"IF(AND($J$22=\"Rare\",$L$22>1),\"Erreur\",\"Ok\")","v":"Ok"},{"$f":"IF(AND($J$22=\"Spéciale\",$L$22>3),\"Erreur\",\"Ok\")","v":"Ok"},"Ok",{"$f":"IF(COUNTIF(B19:B26,\"*Qilby*\")>1,\"Trop de Qilby\",\"Ok\")","v":"Ok"},null,{"$f":"IF(COUNTIF(B19:B26,\"Riktus Elite\")<1,\"Sans Élite\",\"Ok\")","v":"Sans Élite"}]
[null,null,{"$f":"IF(B23=\"\",\"\",(VLOOKUP(B23,'Base de données'!$B$1:$AV$2000,2,FALSE)))","v":""},{"$f":"IF(B23=\"\",\"\",(VLOOKUP(B23,'Base de données'!$B$1:$AV$2000,3,FALSE)))","v":""},{"$f":"IF(B23=\"\",\"\",(VLOOKUP(B23,'Base de données'!$B$1:$AV$2000,4,FALSE)))","v":""},{"$f":"IF(B23=\"\",\"\",(VLOOKUP(B23,'Base de données'!$B$1:$AV$2000,5,FALSE)))","v":""},{"$f":"IF(B23=\"\",\"\",(VLOOKUP(B23,'Base de données'!$B$1:$AV$2000,6,FALSE)))","v":""},{"$f":"IF(B23=\"\",\"\",(VLOOKUP(B23,'Base de données'!$B$1:$AV$2000,7,FALSE)))","v":""},{"$f":"IF(B23=\"\",\"\",(VLOOKUP(B23,'Base de données'!$B$1:$AV$2000,44,FALSE)))","v":""},{"$f":"IF(B23=\"\",\"\",(VLOOKUP(B23,'Base de données'!$B$1:$AV$2000,47,FALSE)))","v":""},null,0,{"$f":"IF(AND($J$23=\"Commune\",$L$23>2),\"Erreur\",\"Ok\")","v":"Ok"},{"$f":"IF(AND($J$23=\"Rare\",$L$23>1),\"Erreur\",\"Ok\")","v":"Ok"},{"$f":"IF(AND($J$23=\"Spéciale\",$L$23>3),\"Erreur\",\"Ok\")","v":"Ok"},"Ok"]
[null,null,{"$f":"IF(B24=\"\",\"\",(VLOOKUP(B24,'Base de données'!$B$1:$AV$2000,2,FALSE)))","v":""},{"$f":"IF(B24=\"\",\"\",(VLOOKUP(B24,'Base de données'!$B$1:$AV$2000,3,FALSE)))","v":""},{"$f":"IF(B24=\"\",\"\",(VLOOKUP(B24,'Base de données'!$B$1:$AV$2000,4,FALSE)))","v":""},{"$f":"IF(B24=\"\",\"\",(VLOOKUP(B24,'Base de données'!$B$1:$AV$2000,5,FALSE)))","v":""},{"$f":"IF(B24=\"\",\"\",(VLOOKUP(B24,'Base de données'!$B$1:$AV$2000,6,FALSE)))","v":""},{"$f":"IF(B24=\"\",\"\",(VLOOKUP(B24,'Base de données'!$B$1:$AV$2000,7,FALSE)))","v":""},{"$f":"IF(B24=\"\",\"\",(VLOOKUP(B24,'Base de données'!$B$1:$AV$2000,44,FALSE)))","v":""},{"$f":"IF(B24=\"\",\"\",(VLOOKUP(B24,'Base de données'!$B$1:$AV$2000,47,FALSE)))","v":""},null,0,{"$f":"IF(AND($J$24=\"Commune\",$L$24>2),\"Erreur\",\"Ok\")","v":"Ok"},{"$f":"IF(AND($J$24=\"Rare\",$L$24>1),\"Erreur\",\"Ok\")","v":"Ok"},{"$f":"IF(AND($J$24=\"Spéciale\",$L$24>3),\"Erreur\",\"Ok\")","v":"Ok"},"Ok"]
[null,null,{"$f":"IF(B25=\"\",\"\",(VLOOKUP(B25,'Base de données'!$B$1:$AV$2000,2,FALSE)))","v":""},{"$f":"IF(B25=\"\",\"\",(VLOOKUP(B25,'Base de données'!$B$1:$AV$2000,3,FALSE)))","v":""},{"$f":"IF(B25=\"\",\"\",(VLOOKUP(B25,'Base de données'!$B$1:$AV$2000,4,FALSE)))","v":""},{"$f":"IF(B25=\"\",\"\",(VLOOKUP(B25,'Base de données'!$B$1:$AV$2000,5,FALSE)))","v":""},{"$f":"IF(B25=\"\",\"\",(VLOOKUP(B25,'Base de données'!$B$1:$AV$2000,6,FALSE)))","v":""},{"$f":"IF(B25=\"\",\"\",(VLOOKUP(B25,'Base de données'!$B$1:$AV$2000,7,FALSE)))","v":""},{"$f":"IF(B25=\"\",\"\",(VLOOKUP(B25,'Base de données'!$B$1:$AV$2000,44,FALSE)))","v":""},{"$f":"IF(B25=\"\",\"\",(VLOOKUP(B25,'Base de données'!$B$1:$AV$2000,47,FALSE)))","v":""},null,0,{"$f":"IF(AND($J$25=\"Commune\",$L$25>2),\"Erreur\",\"Ok\")","v":"Ok"},{"$f":"IF(AND($J$25=\"Rare\",$L$25>1),\"Erreur\",\"Ok\")","v":"Ok"},{"$f":"IF(AND($J$25=\"Spéciale\",$L$25>3),\"Erreur\",\"Ok\")","v":"Ok"},"Ok"]
[null,null,{"$f":"IF(B26=\"\",\"\",(VLOOKUP(B26,'Base de données'!$B$1:$AV$2000,2,FALSE)))","v":""},{"$f":"IF(B26=\"\",\"\",(VLOOKUP(B26,'Base de données'!$B$1:$AV$2000,3,FALSE)))","v":""},{"$f":"IF(B26=\"\",\"\",(VLOOKUP(B26,'Base de données'!$B$1:$AV$2000,4,FALSE)))","v":""},{"$f":"IF(B26=\"\",\"\",(VLOOKUP(B26,'Base de données'!$B$1:$AV$2000,5,FALSE)))","v":""},{"$f":"IF(B26=\"\",\"\",(VLOOKUP(B26,'Base de données'!$B$1:$AV$2000,6,FALSE)))","v":""},{"$f":"IF(B26=\"\",\"\",(VLOOKUP(B26,'Base de données'!$B$1:$AV$2000,7,FALSE)))","v":""},null,{"$f":"IF(B26=\"\",\"\",(VLOOKUP(B26,'Base de données'!$B$1:$AV$2000,47,FALSE)))","v":""},null,0,{"$f":"IF(AND($J$26=\"Commune\",$L$26>2),\"Erreur\",\"Ok\")","v":"Ok"},{"$f":"IF(AND($J$26=\"Rare\",$L$26>1),\"Erreur\",\"Ok\")","v":"Ok"},{"$f":"IF(AND($J$26=\"Spéciale\",$L$26>3),\"Erreur\",\"Ok\")","v":"Ok"},"Ok"]
[null,null,null,{"$f":"SUM(D19:D26)&\"/12\"","v":"0/12"},{"$f":"IF(S27=\"Exception001\",\"Exception001\",IF(D27<>\"12/12\",\"Erreur001\",IF(OR(M27=\"Erreur002\",N27=\"Erreur002\",O27=\"Erreur002\"),\"Erreur002\",IF(P27=\"Erreur003\",\"Erreur003\",IF(Q27=\"Erreur004\",\"Erreur004\",IF(R27=\"Erreur005\",\"Erreur005\",\"Équipe prête\"))))))","v":"Erreur001"},{"$f":"IF(E27=\"Équipe prête\",\"\",VLOOKUP(E27,Glossaire!$B$1:$C$500,2,FALSE))","v":"Vous n'avez pas le bon nombre de niveaux"},null,null,null,null,null,"Résultat :",{"$f":"IF(COUNTIF($M$19:$M$26,\"Erreur\")>0,\"Erreur002\",\"Ok\")","v":"Ok"},{"$f":"IF(COUNTIF($N$19:$N$26,\"Erreur\")>0,\"Erreur002\",\"Ok\")","v":"Ok"},{"$f":"IF(COUNTIF($O$19:$O$26,\"Erreur\")>0,\"Erreur002\",\"Ok\")","v":"Ok"},{"$f":"IF(COUNTIF($P$19:$P$26,\"Boss\")>1,\"Erreur003\",\"Ok\")","v":"Ok"},{"$f":"IF(COUNTIF($Q$19:$Q$26,\"Ok\")<4,\"Erreur004\",\"Ok\")","v":"Ok"},{"$f":"IF(COUNTIF($R$19:$R$26,\"Ok\")<2,\"Erreur005\",\"Ok\")","v":"Ok"},{"$f":"IF(COUNTIF(S19:S26,\"Ok\")<4,\"Ok\",\"Exception001\")","v":"Ok"}]
[]
[]
[null,"Équipe 3"]
[null,"Nom","Classe","Niveau","Initiative","PM","PV","PA","Pouvoirs","Rareté",null,"Quantité","Commune","Rare","Spéciale","Boss","Doublons","Bannies","Bandits"]
[null,null,{"$f":"IF(B32=\"\",\"\",(VLOOKUP(B32,'Base de données'!$B$1:$AV$2000,2,FALSE)))","v":""},{"$f":"IF(B32=\"\",\"\",(VLOOKUP(B32,'Base de données'!$B$1:$AV$2000,3,FALSE)))","v":""},{"$f":"IF(B32=\"\",\"\",(VLOOKUP(B32,'Base de données'!$B$1:$AV$2000,4,FALSE)))","v":""},{"$f":"IF(B32=\"\",\"\",(VLOOKUP(B32,'Base de données'!$B$1:$AV$2000,5,FALSE)))","v":""},{"$f":"IF(B32=\"\",\"\",(VLOOKUP(B32,'Base de données'!$B$1:$AV$2000,6,FALSE)))","v":""},{"$f":"IF(B32=\"\",\"\",(VLOOKUP(B32,'Base de données'!$B$1:$AV$2000,7,FALSE)))","v":""},{"$f":"IF(B32=\"\",\"\",(VLOOKUP(B32,'Base de données'!$B$1:$AV$2000,44,FALSE)))","v":""},{"$f":"IF(B32=\"\",\"\",(VLOOKUP(B32,'Base de données'!$B$1:$AV$2000,47,FALSE)))","v":""},null,{"$f":"COUNTIFS($B$32:$B$39,B32,$J$32:$J$39,J32)","v":0},{"$f":"IF(AND(J32=\"Commune\",$L$32>2),\"Erreur\",\"Ok\")","v":"Ok"},{"$f":"IF(AND(J32=\"Rare\",$L$32>1),\"Erreur\",\"Ok\")","v":"Ok"},{"$f":"IF(AND(J32=\"Spéciale\",$L$32>3),\"Erreur\",\"Ok\")","v":"Ok"},{"$f":"IF(COUNTIF(C32,\"*Boss*\")>0,\"Boss\",\"Ok\")","v":"Ok"},{"$f":"IF(COUNTIF(B32:B39,\"*Adamaï*\")>1,\"Trop de Adamaï\",\"Ok\")","v":"Ok"},{"$f":"IF(COUNTIF(B32:B39,\"*Liane Zolie*\")>0,\"Liane Zolie Bannie\",\"Ok\")","v":"Ok"},{"$f":"IF(COUNTIF(C32:C39,\"*bandit*\")>4,\"Ok\",\"Pas assez\")","v":"Pas assez"}]
[null,null,{"$f":"IF(B33=\"\",\"\",(VLOOKUP(B33,'Base de données'!$B$1:$AV$2000,2,FALSE)))","v":""},{"$f":"IF(B33=\"\",\"\",(VLOOKUP(B33,'Base de données'!$B$1:$AV$2000,3,FALSE)))","v":""},{"$f":"IF(B33=\"\",\"\",(VLOOKUP(B33,'Base de données'!$B$1:$AV$2000,4,FALSE)))","v":""},{"$f":"IF(B33=\"\",\"\",(VLOOKUP(B33,'Base de données'!$B$1:$AV$2000,5,FALSE)))","v":""},{"$f":"IF(B33=\"\",\"\",(VLOOKUP(B33,'Base de données'!$B$1:$AV$2000,6,FALSE)))","v":""},{"$f":"IF(B33=\"\",\"\",(VLOOKUP(B33,'Base de données'!$B$1:$AV$2000,7,FALSE)))","v":""},{"$f":"IF(B33=\"\",\"\",(VLOOKUP(B33,'Base de données'!$B$1:$AV$2000,44,FALSE)))","v":""},{"$f":"IF(B33=\"\",\"\",(VLOOKUP(B33,'Base de données'!$B$1:$AV$2000,47,FALSE)))","v":""},null,0,{"$f":"IF(AND(J33=\"Commune\",$L$33>2),\"Erreur\",\"Ok\")","v":"Ok"},{"$f":"IF(AND(J33=\"Rare\",$L$33>1),\"Erreur\",\"Ok\")","v":"Ok"},{"$f":"IF(AND(J33=\"Spéciale\",$L$33>3),\"Erreur\",\"Ok\")","v":"Ok"},{"$f":"IF(COUNTIF(C33,\"*Boss*\")>0,\"Boss\",\"Ok\")","v":"Ok"},{"$f":"IF(COUNTIF(B32:B39,\"*Yugo*\")>1,\"Trop de Yugo\",\"Ok\")","v":"Ok"},{"$f":"IF(COUNTIF(B32:B39,\"*Terminatot Gaulde*\")>0,\"Terminatot Gaulde Bannie\",\"Ok\")","v":"Ok"},{"$f":"IF(SUM(D32:D39)>14,\"Trop haut\",\"Ok\")","v":"Ok"}]
[null,null,{"$f":"IF(B34=\"\",\"\",(VLOOKUP(B34,'Base de données'!$B$1:$AV$2000,2,FALSE)))","v":""},{"$f":"IF(B34=\"\",\"\",(VLOOKUP(B34,'Base de données'!$B$1:$AV$2000,3,FALSE)))","v":""},{"$f":"IF(B34=\"\",\"\",(VLOOKUP(B34,'Base de données'!$B$1:$AV$2000,4,FALSE)))","v":""},{"$f":"IF(B34=\"\",\"\",(VLOOKUP(B34,'Base de données'!$B$1:$AV$2000,5,FALSE)))","v":""},{"$f":"IF(B34=\"\",\"\",(VLOOKUP(B34,'Base de données'!$B$1:$AV$2000,6,FALSE)))","v":""},{"$f":"IF(B34=\"\",\"\",(VLOOKUP(B34,'Base de données'!$B$1:$AV$2000,7,FALSE)))","v":""},{"$f":"IF(B34=\"\",\"\",(VLOOKUP(B34,'Base de données'!$B$1:$AV$2000,44,FALSE)))","v":""},{"$f":"IF(B34=\"\",\"\",(VLOOKUP(B34,'Base de données'!$B$1:$AV$2000,47,FALSE)))","v":""},null,0,{"$f":"IF(AND(J34=\"Commune\",$L$34>2),\"Erreur\",\"Ok\")","v":"Ok"},{"$f":"IF(AND(J34=\"Rare\",$L$34>1),\"Erreur\",\"Ok\")","v":"Ok"},{"$f":"IF(AND(J34=\"Spéciale\",$L$34>3),\"Erreur\",\"Ok\")","v":"Ok"},"Ok",{"$f":"IF(COUNTIF(B32:B39,\"*Tristepin*\")>1,\"Trop de Tristepin\",\"Ok\")","v":"Ok"},null,{"$f":"IF(SUMIF(C32:C39,\"bandit\",D32:D39)<12,\"Pas assez\",\"Ok\")","v":"Pas assez"}]
[null,null,{"$f":"IF(B35=\"\",\"\",(VLOOKUP(B35,'Base de données'!$B$1:$AV$2000,2,FALSE)))","v":""},{"$f":"IF(B35=\"\",\"\",(VLOOKUP(B35,'Base de données'!$B$1:$AV$2000,3,FALSE)))","v":""},{"$f":"IF(B35=\"\",\"\",(VLOOKUP(B35,'Base de données'!$B$1:$AV$2000,4,FALSE)))","v":""},{"$f":"IF(B35=\"\",\"\",(VLOOKUP(B35,'Base de données'!$B$1:$AV$2000,5,FALSE)))","v":""},{"$f":"IF(B35=\"\",\"\",(VLOOKUP(B35,'Base de données'!$B$1:$AV$2000,6,FALSE)))","v":""},{"$f":"IF(B35=\"\",\"\",(VLOOKUP(B35,'Base de données'!$B$1:$AV$2000,7,FALSE)))","v":""},{"$f":"IF(B35=\"\",\"\",(VLOOKUP(B35,'Base de données'!$B$1:$AV$2000,44,FALSE)))","v":""},{"$f":"IF(B35=\"\",\"\",(VLOOKUP(B35,'Base de données'!$B$1:$AV$2000,47,FALSE)))","v":""},null,0,{"$f":"IF(AND(J35=\"Commune\",$L$35>2),\"Erreur\",\"Ok\")","v":"Ok"},{"$f":"IF(AND(J35=\"Rare\",$L$35>1),\"Erreur\",\"Ok\")","v":"Ok"},{"$f":"IF(AND(J35=\"Spéciale\",$L$35>3),\"Erreur\",\"Ok\")","v":"Ok"},"Ok",{"$f":"IF(COUNTIF(B32:B39,\"*Qilby*\")>1,\"Trop de Qilby\",\"Ok\")","v":"Ok"},null,{"$f":"IF(COUNTIF(B32:B39,\"Riktus Elite\")<1,\"Sans Élite\",\"Ok\")","v":"Sans Élite"}]
[null,null,{"$f":"IF(B36=\"\",\"\",(VLOOKUP(B36,'Base de données'!$B$1:$AV$2000,2,FALSE)))","v":""},{"$f":"IF(B36=\"\",\"\",(VLOOKUP(B36,'Base de données'!$B$1:$AV$2000,3,FALSE)))","v":""},{"$f":"IF(B36=\"\",\"\",(VLOOKUP(B36,'Base de données'!$B$1:$AV$2000,4,FALSE)))","v":""},{"$f":"IF(B36=\"\",\"\",(VLOOKUP(B36,'Base de données'!$B$1:$AV$2000,5,FALSE)))","v":""},{"$f":"IF(B36=\"\",\"\",(VLOOKUP(B36,'Base de données'!$B$1:$AV$2000,6,FALSE)))","v":""},{"$f":"IF(B36=\"\",\"\",(VLOOKUP(B36,'Base de données'!$B$1:$AV$2000,7,FALSE)))","v":""},{"$f":"IF(B36=\"\",\"\",(VLOOKUP(B36,'Base de données'!$B$1:$AV$2000,44,FALSE)))","v":""},{"$f":"IF(B36=\"\",\"\",(VLOOKUP(B36,'Base de données'!$B$1:$AV$2000,47,FALSE)))","v":""},null,0,{"$f":"IF(AND(J36=\"Commune\",$L$36>2),\"Erreur\",\"Ok\")","v":"Ok"},{"$f":"IF(AND(J36=\"Rare\",$L$36>1),\"Erreur\",\"Ok\")","v":"Ok"},{"$f":"IF(AND(J36=\"Spéciale\",$L$36>3),\"Erreur\",\"Ok\")","v":"Ok"},"Ok"]
[null,null,{"$f":"IF(B37=\"\",\"\",(VLOOKUP(B37,'Base de données'!$B$1:$AV$2000,2,FALSE)))","v":""},{"$f":"IF(B37=\"\",\"\",(VLOOKUP(B37,'Base de données'!$B$1:$AV$2000,3,FALSE)))","v":""},{"$f":"IF(B37=\"\",\"\",(VLOOKUP(B37,'Base de données'!$B$1:$AV$2000,4,FALSE)))","v":""},{"$f":"IF(B37=\"\",\"\",(VLOOKUP(B37,'Base de données'!$B$1:$AV$2000,5,FALSE)))","v":""},{"$f":"IF(B37=\"\",\"\",(VLOOKUP(B37,'Base de données'!$B$1:$AV$2000,6,FALSE)))","v":""},{"$f":"IF(B37=\"\",\"\",(VLOOKUP(B37,'Base de données'!$B$1:$AV$2000,7,FALSE)))","v":""},{"$f":"IF(B37=\"\",\"\",(VLOOKUP(B37,'Base de données'!$B$1:$AV$2000,44,FALSE)))","v":""},{"$f":"IF(B37=\"\",\"\",(VLOOKUP(B37,'Base de données'!$B$1:$AV$2000,47,FALSE)))","v":""},null,0,{"$f":"IF(AND(J37=\"Commune\",$L$37>2),\"Erreur\",\"Ok\")","v":"Ok"},{"$f":"IF(AND(J37=\"Rare\",$L$37>1),\"Erreur\",\"Ok\")","v":"Ok"},{"$f":"IF(AND(J37=\"Spéciale\",$L$37>3),\"Erreur\",\"Ok\")","v":"Ok"},"Ok"]
[null,null,{"$f":"IF(B38=\"\",\"\",(VLOOKUP(B38,'Base de données'!$B$1:$AV$2000,2,FALSE)))","v":""},{"$f":"IF(B38=\"\",\"\",(VLOOKUP(B38,'Base de données'!$B$1:$AV$2000,3,FALSE)))","v":""},{"$f":"IF(B38=\"\",\"\",(VLOOKUP(B38,'Base de données'!$B$1:$AV$2000,4,FALSE)))","v":""},{"$f":"IF(B38=\"\",\"\",(VLOOKUP(B38,'Base de données'!$B$1:$AV$2000,5,FALSE)))","v":""},{"$f":"IF(B38=\"\",\"\",(VLOOKUP(B38,'Base de données'!$B$1:$AV$2000,6,FALSE)))","v":""},{"$f":"IF(B38=\"\",\"\",(VLOOKUP(B38,'Base de données'!$B$1:$AV$2000,7,FALSE)))","v":""},{"$f":"IF(B38=\"\",\"\",(VLOOKUP(B38,'Base de données'!$B$1:$AV$2000,44,FALSE)))","v":""},{"$f":"IF(B38=\"\",\"\",(VLOOKUP(B38,'Base de données'!$B$1:$AV$2000,47,FALSE)))","v":""},null,0,{"$f":"IF(AND(J38=\"Commune\",$L$38>2),\"Erreur\",\"Ok\")","v":"Ok"},{"$f":"IF(AND(J38=\"Rare\",$L$38>1),\"Erreur\",\"Ok\")","v":"Ok"},{"$f":"IF(AND(J38=\"Spéciale\",$L$38>3),\"Erreur\",\"Ok\")","v":"Ok"},"Ok"]
[null,null,{"$f":"IF(B39=\"\",\"\",(VLOOKUP(B39,'Base de données'!$B$1:$AV$2000,2,FALSE)))","v":""},{"$f":"IF(B39=\"\",\"\",(VLOOKUP(B39,'Base de données'!$B$1:$AV$2000,3,FALSE)))","v":""},{"$f":"IF(B39=\"\",\"\",(VLOOKUP(B39,'Base de données'!$B$1:$AV$2000,4,FALSE)))","v":""},{"$f":"IF(B39=\"\",\"\",(VLOOKUP(B39,'Base de données'!$B$1:$AV$2000,5,FALSE)))","v":""},{"$f":"IF(B39=\"\",\"\",(VLOOKUP(B39,'Base de données'!$B$1:$AV$2000,6,FALSE)))","v":""},{"$f":"IF(B39=\"\",\"\",(VLOOKUP(B39,'Base de données'!$B$1:$AV$2000,7,FALSE)))","v":""},{"$f":"IF(B39=\"\",\"\",(VLOOKUP(B39,'Base de données'!$B$1:$AV$2000,44,FALSE)))","v":""},{"$f":"IF(B39=\"\",\"\",(VLOOKUP(B39,'Base de données'!$B$1:$AV$2000,47,FALSE)))","v":""},null,0,{"$f":"IF(AND(J39=\"Commune\",$L$39>2),\"Erreur\",\"Ok\")","v":"Ok"},{"$f":"IF(AND(J39=\"Rare\",$L$39>1),\"Erreur\",\"Ok\")","v":"Ok"},{"$f":"IF(AND(J39=\"Spéciale\",$L$39>3),\"Erreur\",\"Ok\")","v":"Ok"},"Ok"]
[null,null,null,{"$f":"SUM(D32:D39)&\"/12\"","v":"0/12"},{"$f":"IF(S40=\"Exception001\",\"Exception001\",IF(D40<>\"12/12\",\"Erreur001\",IF(OR(M40=\"Erreur002\",N40=\"Erreur002\",O40=\"Erreur002\"),\"Erreur002\",IF(P40=\"Erreur003\",\"Erreur003\",IF(Q40=\"Erreur004\",\"Erreur004\",IF(R40=\"Erreur005\",\"Erreur005\",\"Équipe prête\"))))))","v":"Erreur001"},{"$f":"IF(E40=\"Équipe prête\",\"\",VLOOKUP(E40,Glossaire!$B$1:$C$500,2,FALSE))","v":"Vous n'avez pas le bon nombre de niveaux"},null,null,null,null,null,"Résultat :",{"$f":"IF(COUNTIF($M$32:$M$39,\"Erreur\")>0,\"Erreur002\",\"Ok\")","v":"Ok"},{"$f":"IF(COUNTIF($N$32:$N$39,\"Erreur\")>0,\"Erreur002\",\"Ok\")","v":"Ok"},{"$f":"IF(COUNTIF($O$32:$O$39,\"Erreur\")>0,\"Erreur002\",\"Ok\")","v":"Ok"},{"$f":"IF(COUNTIF($P$32:$P$39,\"Boss\")>1,\"Erreur003\",\"Ok\")","v":"Ok"},{"$f":"IF(COUNTIF($Q$32:$Q$39,\"Ok\")<4,\"Erreur004\",\"Ok\")","v":"Ok"},{"$f":"IF(COUNTIF($R$32:$R$39,\"Ok\")<2,\"Erreur005\",\"Ok\")","v":"Ok"},{"$f":"IF(COUNTIF(S32:S39,\"Ok\")<4,\"Ok\",\"Exception001\")","v":"Ok"}]
[]
[]
[null,"Équipe 4"]
[null,"Nom","Classe","Niveau","Initiative","PM","PV","PA","Pouvoirs","Rareté",null,"Quantité","Commune","Rare","Spéciale","Boss","Doublons","Bannies","Bandits"]
[null,null,{"$f":"IF(B45=\"\",\"\",(VLOOKUP(B45,'Base de données'!$B$1:$AV$2000,2,FALSE)))","v":""},{"$f":"IF(B45=\"\",\"\",(VLOOKUP(B45,'Base de données'!$B$1:$AV$2000,3,FALSE)))","v":""},{"$f":"IF(B45=\"\",\"\",(VLOOKUP(B45,'Base de données'!$B$1:$AV$2000,4,FALSE)))","v":""},{"$f":"IF(B45=\"\",\"\",(VLOOKUP(B45,'Base de données'!$B$1:$AV$2000,5,FALSE)))","v":""},{"$f":"IF(B45=\"\",\"\",(VLOOKUP(B45,'Base de données'!$B$1:$AV$2000,6,FALSE)))","v":""},{"$f":"IF(B45=\"\",\"\",(VLOOKUP(B45,'Base de données'!$B$1:$AV$2000,7,FALSE)))","v":""},{"$f":"IF(B45=\"\",\"\",(VLOOKUP(B45,'Base de données'!$B$1:$AV$2000,44,FALSE)))","v":""},{"$f":"IF(B45=\"\",\"\",(VLOOKUP(B45,'Base de données'!$B$1:$AV$2000,47,FALSE)))","v":""},null,{"$f":"COUNTIFS($B$45:$B$52,B45,$J$45:$J$52,J45)","v":0},{"$f":"IF(AND(J45=\"Commune\",L45>2),\"Erreur\",\"Ok\")","v":"Ok"},{"$f":"IF(AND(J45=\"Rare\",L45>1),\"Erreur\",\"Ok\")","v":"Ok"},{"$f":"IF(AND(J45=\"Spéciale\",L45>3),\"Erreur\",\"Ok\")","v":"Ok"},{"$f":"IF(COUNTIF(C45,\"*Boss*\")>0,\"Boss\",\"Ok\")","v":"Ok"},{"$f":"IF(COUNTIF(B45:B52,\"*Adamaï*\")>1,\"Trop de Adamaï\",\"Ok\")","v":"Ok"},{"$f":"IF(COUNTIF(B45:B52,\"*Liane Zolie*\")>0,\"Liane Zolie Bannie\",\"Ok\")","v":"Ok"},{"$f":"IF(COUNTIF(C45:C52,\"*bandit*\")>5,\"Ok\",\"Pas assez\")","v":"Pas assez"}]
[null,null,{"$f":"IF(B46=\"\",\"\",(VLOOKUP(B46,'Base de données'!$B$1:$AV$2000,2,FALSE)))","v":""},{"$f":"IF(B46=\"\",\"\",(VLOOKUP(B46,'Base de données'!$B$1:$AV$2000,3,FALSE)))","v":""},{"$f":"IF(B46=\"\",\"\",(VLOOKUP(B46,'Base de données'!$B$1:$AV$2000,4,FALSE)))","v":""},{"$f":"IF(B46=\"\",\"\",(VLOOKUP(B46,'Base de données'!$B$1:$AV$2000,5,FALSE)))","v":""},{"$f":"IF(B46=\"\",\"\",(VLOOKUP(B46,'Base de données'!$B$1:$AV$2000,6,FALSE)))","v":""},{"$f":"IF(B46=\"\",\"\",(VLOOKUP(B46,'Base de données'!$B$1:$AV$2000,7,FALSE)))","v":""},{"$f":"IF(B46=\"\",\"\",(VLOOKUP(B46,'Base de données'!$B$1:$AV$2000,44,FALSE)))","v":""},{"$f":"IF(B46=\"\",\"\",(VLOOKUP(B46,'Base de données'!$B$1:$AV$2000,47,FALSE)))","v":""},null,{"$f":"COUNTIFS($B$45:$B$52,B46,$J$45:$J$52,J46)","v":0},{"$f":"IF(AND(J46=\"Commune\",L46>2),\"Erreur\",\"Ok\")","v":"Ok"},{"$f":"IF(AND(J46=\"Rare\",L46>1),\"Erreur\",\"Ok\")","v":"Ok"},{"$f":"IF(AND(J46=\"Spéciale\",L46>3),\"Erreur\",\"Ok\")","v":"Ok"},{"$f":"IF(COUNTIF(C46,\"*Boss*\")>0,\"Boss\",\"Ok\")","v":"Ok"},{"$f":"IF(COUNTIF(B45:B52,\"*Yugo*\")>1,\"Trop de Yugo\",\"Ok\")","v":"Ok"},{"$f":"IF(COUNTIF(B45:B52,\"*Terminatot Gaulde*\")>0,\"Terminatot Gaulde Bannie\",\"Ok\")","v":"Ok"},{"$f":"IF(SUM(D45:D52)>14,\"Trop haut\",\"Ok\")","v":"Ok"}]
[null,null,{"$f":"IF(B47=\"\",\"\",(VLOOKUP(B47,'Base de données'!$B$1:$AV$2000,2,FALSE)))","v":""},{"$f":"IF(B47=\"\",\"\",(VLOOKUP(B47,'Base de données'!$B$1:$AV$2000,3,FALSE)))","v":""},{"$f":"IF(B47=\"\",\"\",(VLOOKUP(B47,'Base de données'!$B$1:$AV$2000,4,FALSE)))","v":""},{"$f":"IF(B47=\"\",\"\",(VLOOKUP(B47,'Base de données'!$B$1:$AV$2000,5,FALSE)))","v":""},{"$f":"IF(B47=\"\",\"\",(VLOOKUP(B47,'Base de données'!$B$1:$AV$2000,6,FALSE)))","v":""},{"$f":"IF(B47=\"\",\"\",(VLOOKUP(B47,'Base de données'!$B$1:$AV$2000,7,FALSE)))","v":""},{"$f":"IF(B47=\"\",\"\",(VLOOKUP(B47,'Base de données'!$B$1:$AV$2000,44,FALSE)))","v":""},{"$f":"IF(B47=\"\",\"\",(VLOOKUP(B47,'Base de données'!$B$1:$AV$2000,47,FALSE)))","v":""},null,0,"Ok","Ok","Ok","Ok",{"$f":"IF(COUNTIF(B45:B52,\"*Tristepin*\")>1,\"Trop de Tristepin\",\"Ok\")","v":"Ok"},null,{"$f":"IF(SUMIF(C45:C52,\"bandit\",D45:D52)<12,\"Pas assez\",\"Ok\")","v":"Pas assez"}]
[null,null,{"$f":"IF(B48=\"\",\"\",(VLOOKUP(B48,'Base de données'!$B$1:$AV$2000,2,FALSE)))","v":""},{"$f":"IF(B48=\"\",\"\",(VLOOKUP(B48,'Base de données'!$B$1:$AV$2000,3,FALSE)))","v":""},{"$f":"IF(B48=\"\",\"\",(VLOOKUP(B48,'Base de données'!$B$1:$AV$2000,4,FALSE)))","v":""},{"$f":"IF(B48=\"\",\"\",(VLOOKUP(B48,'Base de données'!$B$1:$AV$2000,5,FALSE)))","v":""},{"$f":"IF(B48=\"\",\"\",(VLOOKUP(B48,'Base de données'!$B$1:$AV$2000,6,FALSE)))","v":""},{"$f":"IF(B48=\"\",\"\",(VLOOKUP(B48,'Base de données'!$B$1:$AV$2000,7,FALSE)))","v":""},{"$f":"IF(B48=\"\",\"\",(VLOOKUP(B48,'Base de données'!$B$1:$AV$2000,44,FALSE)))","v":""},{"$f":"IF(B48=\"\",\"\",(VLOOKUP(B48,'Base de données'!$B$1:$AV$2000,47,FALSE)))","v":""},null,0,"Ok","Ok","Ok","Ok",{"$f":"IF(COUNTIF(B45:B52,\"*Qilby*\")>1,\"Trop de Qilby\",\"Ok\")","v":"Ok"},null,{"$f":"IF(COUNTIF(B45:B52,\"Riktus Elite\")<1,\"Sans Élite\",\"Ok\")","v":"Sans Élite"}]
[null,null,{"$f":"IF(B49=\"\",\"\",(VLOOKUP(B49,'Base de données'!$B$1:$AV$2000,2,FALSE)))","v":""},{"$f":"IF(B49=\"\",\"\",(VLOOKUP(B49,'Base de données'!$B$1:$AV$2000,3,FALSE)))","v":""},{"$f":"IF(B49=\"\",\"\",(VLOOKUP(B49,'Base de données'!$B$1:$AV$2000,4,FALSE)))","v":""},{"$f":"IF(B49=\"\",\"\",(VLOOKUP(B49,'Base de données'!$B$1:$AV$2000,5,FALSE)))","v":""},{"$f":"IF(B49=\"\",\"\",(VLOOKUP(B49,'Base de données'!$B$1:$AV$2000,6,FALSE)))","v":""},{"$f":"IF(B49=\"\",\"\",(VLOOKUP(B49,'Base de données'!$B$1:$AV$2000,7,FALSE)))","v":""},{"$f":"IF(B49=\"\",\"\",(VLOOKUP(B49,'Base de données'!$B$1:$AV$2000,44,FALSE)))","v":""},{"$f":"IF(B49=\"\",\"\",(VLOOKUP(B49,'Base de données'!$B$1:$AV$2000,47,FALSE)))","v":""},null,0,"Ok","Ok","Ok","Ok"]
[null,null,{"$f":"IF(B50=\"\",\"\",(VLOOKUP(B50,'Base de données'!$B$1:$AV$2000,2,FALSE)))","v":""},{"$f":"IF(B50=\"\",\"\",(VLOOKUP(B50,'Base de données'!$B$1:$AV$2000,3,FALSE)))","v":""},{"$f":"IF(B50=\"\",\"\",(VLOOKUP(B50,'Base de données'!$B$1:$AV$2000,4,FALSE)))","v":""},{"$f":"IF(B50=\"\",\"\",(VLOOKUP(B50,'Base de données'!$B$1:$AV$2000,5,FALSE)))","v":""},{"$f":"IF(B50=\"\",\"\",(VLOOKUP(B50,'Base de données'!$B$1:$AV$2000,6,FALSE)))","v":""},{"$f":"IF(B50=\"\",\"\",(VLOOKUP(B50,'Base de données'!$B$1:$AV$2000,7,FALSE)))","v":""},{"$f":"IF(B50=\"\",\"\",(VLOOKUP(B50,'Base de données'!$B$1:$AV$2000,44,FALSE)))","v":""},{"$f":"IF(B50=\"\",\"\",(VLOOKUP(B50,'Base de données'!$B$1:$AV$2000,47,FALSE)))","v":""},null,0,"Ok","Ok","Ok","Ok"]
[null,null,{"$f":"IF(B51=\"\",\"\",(VLOOKUP(B51,'Base de données'!$B$1:$AV$2000,2,FALSE)))","v":""},{"$f":"IF(B51=\"\",\"\",(VLOOKUP(B51,'Base de données'!$B$1:$AV$2000,3,FALSE)))","v":""},{"$f":"IF(B51=\"\",\"\",(VLOOKUP(B51,'Base de données'!$B$1:$AV$2000,4,FALSE)))","v":""},{"$f":"IF(B51=\"\",\"\",(VLOOKUP(B51,'Base de données'!$B$1:$AV$2000,5,FALSE)))","v":""},{"$f":"IF(B51=\"\",\"\",(VLOOKUP(B51,'Base de données'!$B$1:$AV$2000,6,FALSE)))","v":""},{"$f":"IF(B51=\"\",\"\",(VLOOKUP(B51,'Base de données'!$B$1:$AV$2000,7,FALSE)))","v":""},{"$f":"IF(B51=\"\",\"\",(VLOOKUP(B51,'Base de données'!$B$1:$AV$2000,44,FALSE)))","v":""},{"$f":"IF(B51=\"\",\"\",(VLOOKUP(B51,'Base de données'!$B$1:$AV$2000,47,FALSE)))","v":""},null,{"$f":"COUNTIFS($B$45:$B$52,B51,$J$45:$J$52,J51)","v":0},"Ok","Ok",{"$f":"IF(AND(J51=\"Spéciale\",L51>3),\"Erreur\",\"Ok\")","v":"Ok"},{"$f":"IF(COUNTIF(C51,\"*Boss*\")>0,\"Boss\",\"Ok\")","v":"Ok"}]
[null,null,{"$f":"IF(B52=\"\",\"\",(VLOOKUP(B52,'Base de données'!$B$1:$AV$2000,2,FALSE)))","v":""},{"$f":"IF(B52=\"\",\"\",(VLOOKUP(B52,'Base de données'!$B$1:$AV$2000,3,FALSE)))","v":""},{"$f":"IF(B52=\"\",\"\",(VLOOKUP(B52,'Base de données'!$B$1:$AV$2000,4,FALSE)))","v":""},{"$f":"IF(B52=\"\",\"\",(VLOOKUP(B52,'Base de données'!$B$1:$AV$2000,5,FALSE)))","v":""},{"$f":"IF(B52=\"\",\"\",(VLOOKUP(B52,'Base de données'!$B$1:$AV$2000,6,FALSE)))","v":""},{"$f":"IF(B52=\"\",\"\",(VLOOKUP(B52,'Base de données'!$B$1:$AV$2000,7,FALSE)))","v":""},{"$f":"IF(B52=\"\",\"\",(VLOOKUP(B52,'Base de données'!$B$1:$AV$2000,44,FALSE)))","v":""},{"$f":"IF(B52=\"\",\"\",(VLOOKUP(B52,'Base de données'!$B$1:$AV$2000,47,FALSE)))","v":""},null,0,"Ok","Ok","Ok","Ok"]
[null,null,null,{"$f":"SUM(D45:D52)&\"/12\"","v":"0/12"},{"$f":"IF(S53=\"Exception001\",\"Exception001\",IF(D53<>\"12/12\",\"Erreur001\",IF(OR(M53=\"Erreur002\",N53=\"Erreur002\",O53=\"Erreur002\"),\"Erreur002\",IF(P53=\"Erreur003\",\"Erreur003\",IF(Q53=\"Erreur004\",\"Erreur004\",IF(R53=\"Erreur005\",\"Erreur005\",\"Équipe prête\"))))))","v":"Erreur001"},{"$f":"IF(E53=\"Équipe prête\",\"\",VLOOKUP(E53,Glossaire!$B$1:$C$500,2,FALSE))","v":"Vous n'avez pas le bon nombre de niveaux"},null,null,null,null,null,"Résultat :",{"$f":"IF(COUNTIF($M$45:$M$52,\"Erreur\")>0,\"Erreur002\",\"Ok\")","v":"Ok"},{"$f":"IF(COUNTIF($N$45:$N$52,\"Erreur\")>0,\"Erreur002\",\"Ok\")","v":"Ok"},{"$f":"IF(COUNTIF($O$45:$O$52,\"Erreur\")>0,\"Erreur002\",\"Ok\")","v":"Ok"},{"$f":"IF(COUNTIF($P$45:$P$52,\"Boss\")>1,\"Erreur003\",\"Ok\")","v":"Ok"},{"$f":"IF(COUNTIF($Q$45:$Q$52,\"Ok\")<4,\"Erreur004\",\"Ok\")","v":"Ok"},{"$f":"IF(COUNTIF($R$45:$R$52,\"Ok\")<2,\"Erreur005\",\"Ok\")","v":"Ok"},{"$f":"IF(COUNTIF(S45:S52,\"Ok\")<4,\"Ok\",\"Exception001\")","v":"Ok"}]

{"sheet":"Collection","index":2,"n_rows":140,"n_cols":9,"rows_kept":140,"cut":false,"hidden":false,"merged":[]}
["Numéro","Image","Nom","Collection","Saison","Rareté","Acquise","Quantité","En ligne"]
[51,null,"Adamaï","Blind Box 2","Saison 2","Rare"]
[83,null,"Adamaï - Dragon","Flunch 2014","Saison 2","Rare"]
[1,null,"Alie Zèle","Blind Box 1","Saison 1","Commune"]
[39,null,"Amalia","Pack Confrérie du Tofu","Saison 1","Rare"]
[31,null,"Anna Tommy","KrosMaster Arena","Saison 1","Commune"]
["AL",null,"Arbre","Pack Décors 1","Saison 1","Token"]
["AW",null,"Arbre Frigost","KickStarter 2013","Saison 1","Token"]
[89,null,"Arthur Bine","Hypergame Warriors","Saison 2","Rare"]
[52,null,"Ayan","Blind Box 2","Saison 2","Commune"]
[32,null,"Bad Aboum","KrosMaster Arena","Saison 1","Commune"]
["AE",null,"Bombe à Eau","Pack Bombes 1","Saison 1","Token"]
["AF",null,"Bombe Incendiaire","Pack Bombes 1","Saison 1","Token"]
["AQ",null,"Boufmouth","KickStarter 2013","Saison 2","Token"]
["AB",null,"Bouftous","Pack Monstres 1","Saison 1","Token"]
["AM",null,"Buisson","Pack Décors 1","Saison 1","Token"]
["AN",null,"Caisse","Pack Décors 1","Saison 1","Token"]
[27,null,"Captain Amakna","Duel Pack 1","Saison 1","Rare"]
[2,null,"Chevalier Feuille","Blind Box 1","Saison 1","Rare"]
[3,null,"Chevalier Flamme","Blind Box 1","Saison 1","Rare"]
[4,null,"Chevalier Goutte","Blind Box 1","Saison 1","Rare"]
[5,null,"Chevalier Nuage","Blind Box 1","Saison 1","Rare"]
[6,null,"Chevalier Ténèbres","Blind Box 1","Saison 1","Rare"]
[53,null,"Chloé Malette","Blind Box 2","Saison 2","Commune"]
[84,null,"Cléophée","Flunch 2014","Saison 2","Rare"]
[7,null,"Coa Gulay","Blind Box 1","Saison 1","Commune"]
[50,null,"Comte Frigost","Précommandes","Saison 1","Rare"]
[30,null,"Comte Harebourg","Extension Frigost","Saison 1","Rare"]
[105,null,"Corbeau Noir","Pack Dark Heroes","Saison 3","Rare"]
["AZ",null,"Cube de Glace Frigost","KickStarter 2013","Saison 2","Token"]
[8,null,"Daïe Guéri","Blind Box 1","Saison 1","Rare"]
[9,null,"Dany Osheun","Blind Box 1","Saison 1","Commune"]
[106,null,"Dark Vlad","Pack Dark Heroes","Saison 3","Rare"]
[54,null,"Diver Birel","Blind Box 2","Saison 2","Commune"]
[104,null,"Djaul","Pack Dark Heroes","Saison 3","Rare"]
[10,null,"Dokfa Talys","Blind Box 1","Saison 1","Rare"]
[55,null,"Duc Rex","Blind Box 2","Saison 2","Rare"]
[56,null,"Edmond Dentier","Blind Box 2","Saison 2","Commune"]
[57,null,"Elogio","Blind Box 2","Saison 2","Commune"]
[58,null,"Emma Sacre","Blind Box 2","Saison 2","Rare"]
[90,null,"Erik Rak","KrosMaster Junior","Saison 2","Rare"]
["XX",null,"Erreur","Erreur","Erreur","Erreur"]
[40,null,"Evangelyne","Pack Confrérie du Tofu","Saison 1","Rare"]
[91,null,"Filo Komba","KrosMaster Junior","Saison 2","Rare"]
[45,null,"Gaspard Fay","Pack Gaspard Fay","Saison 1","Rare"]
[59,null,"Gegard Laport","Blind Box 2","Saison 2","Commune"]
[60,null,"Gein","Blind Box 2","Saison 2","Rare"]
["AU",null,"Gélikan","KickStarter 2013","Saison 2","Token"]
["AY",null,"Geyser Frigost","KickStarter 2013","Saison 2","Token"]
["BB",null,"GG Métal","Tournois","Saison 1","Token"]
["AT",null,"Givrefoux","KickStarter 2013","Saison 2","Token"]
[11,null,"Globule la Crapule","Blind Box 1","Saison 1","Rare"]
[12,null,"Goultard","Blind Box 1","Saison 1","Rare"]
[29,null,"Goultard le Barbare","DVD Wakfu","Saison 1","Rare"]
["AO",null,"Granduk","Tournois","Saison 2","Token"]
[33,null,"Guy Yomtella","KrosMaster Arena","Saison 1","Commune"]
[61,null,"Harry Saf","Blind Box 2","Saison 2","Rare"]
[62,null,"Henual","Blind Box 2","Saison 2","Commune"]
[63,null,"Hercul Eudla","Blind Box 2","Saison 2","Rare"]
[92,null,"Jayma Gourd","KrosMaster Junior","Saison 2","Rare"]
[13,null,"Jems Blond","Blind Box 1","Saison 1","Commune"]
[64,null,"Jerry Orlo","Blind Box 2","Saison 2","Rare"]
[46,null,"Joris","Pack Kerubim","Saison 1","Rare"]
["BA",null,"Kama Métal","Tournois","Saison 1","Token"]
[108,null,"Katar","Pack Dark Heroes","Saison 3","Rare"]
[65,null,"Katsou Mee","Blind Box 2","Saison 2","Commune"]
[47,null,"Kerubim Crépin","Pack Kerubim","Saison 1","Rare"]
[66,null,"Kitty Rage","Blind Box 2","Saison 2","Commune"]
[67,null,"Kivin","Blind Box 2","Saison 2","Commune"]
[14,null,"Klor Ofil","Blind Box 1","Saison 1","Commune"]
[96,null,"Korbax","Pack Multiman","Saison 2","Spéciale"]
[34,null,"Kréol Panikon","KrosMaster Arena","Saison 1","Commune"]
[103,null,"Kriss la Krass","Pack Dark Heroes","Saison 3","Rare"]
[15,null,"Liane Zolie","Blind Box 1","Saison 1","Rare"]
[48,null,"Lou","Pack Kerubim","Saison 1","Rare"]
[16,null,"Luk Ylook","Blind Box 1","Saison 1","Rare"]
[97,null,"Lumino","Pack Multiman","Saison 2","Spéciale"]
[17,null,"Makum Bah","Blind Box 1","Saison 1","Commune"]
[68,null,"Mali Bouh","Blind Box 2","Saison 2","Commune"]
[98,null,"Masse","Pack Multiman","Saison 2","Spéciale"]
[28,null,"Merkator","Duel Pack 1","Saison 1","Rare"]
[18,null,"Morora","Blind Box 1","Saison 1","Rare"]
[93,null,"Mytik Tak","KrosMaster Junior","Saison 2","Rare"]
[19,null,"Naz Raël","Blind Box 1","Saison 1","Rare"]
[41,null,"Nox","Pack Confrérie du Tofu","Saison 1","Rare"]
[99,null,"Ombre","Pack Multiman","Saison 2","Spéciale"]
[35,null,"Opée Tissoin","KrosMaster Arena","Saison 1","Commune"]
[36,null,"Oscar Nak","KrosMaster Arena","Saison 1","Commune"]
[69,null,"Pandalida","Blind Box 2","Saison 2","Commune"]
[49,null,"Papycha","Pack Kerubim","Saison 1","Rare"]
[20,null,"Percimol","Blind Box 1","Saison 1","Rare"]
[85,null,"Phaéris - Anéanti","Flunch 2014","Saison 2","Rare"]
["AD",null,"Piège Mortel","Pack Monstres 1","Saison 1","Token"]
[70,null,"Poochan","Blind Box 2","Saison 2","Rare"]
["AI",null,"Poupée Bloqueuse","Pack Poupées 1","Saison 1","Token"]
["AJ",null,"Poupée Folle","Pack Poupées 1","Saison 1","Token"]
["AH",null,"Poupée Perdue","Pack Poupées 1","Saison 1","Token"]
["AK",null,"Poupée Sacrifiée","Pack Poupées 1","Saison 1","Token"]
[71,null,"Qilby","Blind Box 2","Saison 2","Rare"]
[86,null,"Qilby - Traître","Flunch 2014","Saison 2","Rare"]
[21,null,"Quentin Flush","Blind Box 1","Saison 1","Commune"]
[72,null,"Raoul Bak","Blind Box 2","Saison 2","Commune"]
[37,null,"Reine des Tofus","KrosMaster Arena","Saison 1","Rare"]
[109,null,"Reine des Voleurs","Duel Pack 2","Saison 3","Rare"]
[22,null,"Remington Smisse","Blind Box 1","Saison 1","Rare"]
[73,null,"Riktus Amakna","Blind Box 2","Saison 2","Spéciale"]
[74,null,"Riktus Bonta","Blind Box 2","Saison 2","Spéciale"]
[75,null,"Riktus Brakmar","Blind Box 2","Saison 2","Spéciale"]
[76,null,"Riktus Elite","Blind Box 2","Saison 2","Commune"]
[77,null,"Riktus Sufokia","Blind Box 2","Saison 2","Spéciale"]
[38,null,"Roi des Bouftous","KrosMaster Arena","Saison 1","Rare"]
[110,null,"Roi Nidas","Duel Pack 2","Saison 3","Rare"]
[42,null,"Ruel Stroud","Pack Confrérie du Tofu","Saison 1","Rare"]
[78,null,"Sam Hyrrit","Blind Box 2","Saison 2","Commune"]
["AX",null,"Sapin Frigost","KickStarter 2013","Saison 2","Token"]
[79,null,"Sarah Croche","Blind Box 2","Saison 2","Commune"]
[100,null,"Scoreur","Pack Multiman","Saison 2","Spéciale"]
[23,null,"Shak Shaka","Blind Box 1","Saison 1","Rare"]
["AS",null,"Shamansot","KickStarter 2013","Saison 2","Token"]
[101,null,"Skale","Pack Multiman","Saison 2","Spéciale"]
[24,null,"Srammy","Blind Box 1","Saison 1","Commune"]
[80,null,"Steamy Wonder","Blind Box 2","Saison 2","Rare"]
[102,null,"Terminatot Gaulde","Tournois TOT","Saison 1","Rare"]
[94,null,"Terminatot Stasis","Offre cadeau Ankama","Saison 1","Rare"]
[95,null,"Terminatot Wakfu","Offre cadeau Ankama","Saison 1","Rare"]
[81,null,"Thio","Blind Box 2","Saison 2","Rare"]
["AR",null,"Timansot","KickStarter 2013","Saison 2","Token"]
["AA",null,"Tofu","Pack Monstres 1","Saison 1","Token"]
["AP",null,"Tofus Givré","KickStarter 2013","Saison 2","Token"]
[25,null,"Tony N. Truhan","Blind Box 1","Saison 1","Commune"]
["AG",null,"Tornabombe","Pack Bombes 1","Saison 1","Token"]
[43,null,"Tristepin","Pack Confrérie du Tofu","Saison 1","Rare"]
[87,null,"Tristepin - Tristecoeur","Flunch 2014","Saison 2","Rare"]
[107,null,"Vampyro","Pack Dark Heroes","Saison 3","Rare"]
["AC",null,"Wabbit","Pack Monstres 1","Saison 1","Token"]
[82,null,"Wally Failleur","Blind Box 2","Saison 2","Commune"]
["AV",null,"Yech'Ti","KickStarter 2013","Saison 2","Token"]
[44,null,"Yugo","Pack Confrérie du Tofu","Saison 1","Rare"]
[88,null,"Yugo - Jeune Roi","Flunch 2014","Saison 2","Rare"]
[26,null,"Zoubo l'Amiche","Blind Box 1","Saison 1","Commune"]

{"sheet":"Recherche","index":3,"n_rows":14,"n_cols":8,"rows_kept":14,"cut":false,"hidden":false,"merged":[[3,5,3,6],[4,5,4,6],[4,1,4,4],[1,1,1,7],[10,1,10,7]]}
[]
[null,"Rechercher une figurine par son nom"]
[]
[null,null,null,null,null,"Entrez le Nom"]
[null,"Rechercher une figurine :",null,null,null,null,null,"Appuyez ici \npour l'image"]
[]
[null,"Numéro","Image","Nom","Classe","Collection","Saison","Rareté"]
[null,{"$f":"IFERROR(INDEX(collection,MATCH($F$5,nomcollect,0),1),\"XX\")","v":"XX"},null,{"$f":"IF($F$5=\"\",\"\",IFERROR(VLOOKUP($F$5,données2,1,FALSE),\"Erreur\"))","v":""},{"$f":"IF($F$5=\"\",\"\",IFERROR(VLOOKUP($F$5,données2,2,FALSE),\"Erreur\"))","v":""},{"$f":"IF($F$5=\"\",\"\",IFERROR(VLOOKUP($F$5,données2,45,FALSE),\"Erreur\"))","v":""},{"$f":"IF($F$5=\"\",\"\",IFERROR(VLOOKUP($F$5,données2,46,FALSE),\"Erreur\"))","v":""},{"$f":"IF($F$5=\"\",\"\",IFERROR(VLOOKUP($F$5,données2,47,FALSE),\"Erreur\"))","v":""}]
[]
[]
[null,"Rechercher des figurines par critères"]
[]
[null,"Niveau","Rareté"]
[null,null,null,{"$f":"IF(AND($B$14=\"\",$C$14=\"\"),\"Entrez 1 ou 2 critères\",\"\")","v":"Entrez 1 ou 2 critères"},"Appuyez ici pour lancer"]

{"sheet":"Glossaire","index":4,"n_rows":88,"n_cols":3,"rows_kept":88,"cut":false,"hidden":false,"merged":[]}
["Catégorie","Terme","Détails"]
["Base de données","Rareté - Commune","Peut se retrouver 2 fois dans une équipe"]
["Base de données","Rareté - Rare","Peut se retrouver 1 fois dans une équipe"]
["Base de données","Rareté - Spécial","Peut se retrouver 3 fois dans une équipe"]
["Base de données","Vision - Droite","Doit respecter les règles de vision en ligne droite"]
["Base de données","Vision - Libre","N'a pas à respecter les règles de vision"]
["Base de données","Vision - Normale","Doit respecter les règles de vision"]
["Base de données","Vision - Poing","Les quatre cases adjacentes"]
["Base de données","Vision - Soi-même","Ne peut être effectué que sur soi-même"]
["Équipes","Erreur001","Vous n'avez pas le bon nombre de niveaux"]
["Équipes","Erreur002","Une figurine est en double/triple alors qu'elle ne doit pas l'être"]
["Équipes","Erreur003","Vous avez deux \"Boss\" dans votre équipe"]
["Équipes","Erreur004","Deux figurines avec le même nom ne peuvent pas être jouées ensemble (Yugo, Adamaï, Tristepin et Qilby)"]
["Équipes","Erreur005","Une des figurines est bannie (Liane Zolie et Terminatot Gaulde)"]
["Équipes","Exception001","Le Riktus Elite permet de dépasser les niveaux de 1 ou 2 (voir l'habileté Chef de Bande)"]
["Habileté","Agilité","Lance un dé supplémentaire lors des jets de frappe et d'armure concernant l'élément air"]
["Habileté","Armure","Lance un dé supplémentaire lors du jet d'armure"]
["Habileté","Attire de X","La cible est attirée de X cases (dans la mesure du possible)"]
["Habileté","Aura de Rapidité","Lorsqu'il termine son tour, le porteur fait augmenter de 1 PM les alliés adjacents pour un tour"]
["Habileté","Bénédiction de Sadida","Au début de son tour, Amalia soigne de 2 PV un autre allié \"Confrérie du Tofu\""]
["Habileté","Beuzeur","Tous les krosmasters alliés font partie de la Confrérie du Tofu"]
["Habileté","Bombes","Les Bombes posées pendant un tour par le personnage explosent au début du tour suivant."]
["Habileté","Bouclier Féca","Duc Rex et les krosmaster alliés adjacents à lui ont une résistance dans les 4 éléments (eau, air, feu et terre)"]
["Habileté","Canne Spray Fixateur","Les sorts des personnages adverses adjacents à Shak Shaka coûtent 1PA de plus pour être lancés"]
["Habileté","Chance","Lance un dé supplémentaire lors des jets de frappe et d'armure concernant l'élément eau"]
["Habileté","Chasseu au Gros","Tant qu'un autre allié de la confrérie du tofu est en jeu, les sorts de Tristepin inflige + 1 terre sur l'ennemi en jeu ayant le plus haut niveau"]
["Habileté","Chef de Bande","Une fois votre composition d'équipe terminée, si elle contient moins de 8 krosmasters et plus de 4 bandits, ajoutez-y gratuitement un bandit de niveau 2 ou moins."]
["Habileté","Cibles Multiples","Toutes les cases valides sont aussi ciblées"]
["Habileté","Compulsion","Chaque tour, le 1er sort d'attaque infligent + 1 (sauf neutre)"]
["Habileté","Coups de Griffes","Quand Naz Raël effectue un jet de tacle contre un personnage adverse, il lui inflige automatiquement 1 blessure"]
["Habileté","Crafteur"," une fois par tour, s’il se trouve sur une case Démon, un Krosmaster possédant ce pouvoir peut acheter une Récompense Démoniaque pour 0 PA. Lors de cette action uniquement, il bénéficie aussi de tarifs réduits : les Récompenses de type Jade coûtent 5 kamas (au lieu de 6), et les Récompenses de type Or coûtent 10 kamas (au lieu de 12). Cette réduction ne s’applique que lors de cet achat spécial : le Krosmaster paye le prix normal s’il désire acheter une autre Récompense durant ce tour"]
["Habileté","Critique","Lance un dé supplémentaire lors du jet de frappe"]
["Habileté","Dressage","Un personnage adverse qui a commencé son tour adjacent à Lou, ne peut pas lancer de sort qui la ciblerait durant ce tour"]
["Habileté","Dynamo","Tant qu'un autre allié de la confrérie du tofu est en jeu, ce Krosmaster gagne immédiatement 1 PM à chaque fois qu'elle inflige un ou plusieurs dommage(s) à un krosmaster "]
["Habileté","Esquive","Lance un dé supplémentaire lors du jet d'esquive"]
["Habileté","Farce du Dragon","Les autres alliés de la Confrérie du Tofu gagne 1 PA max"]
["Habileté","Farmeur"," Si un Krosmaster possédant ce pouvoir a ramassé au moins 1 kama durant son tour de jeu, ajoutez 1 kama supplémentaire à votre réserve à la fin de son tour"]
["Habileté","Faux-Frère","Les sorts d'attaque de ce Krosmaster infligent -1 (sauf neutre) pour chaque allié en jeu"]
["Habileté","Flaquage","Percimol a les pouvoirs Critique, Armure, Esquive et Tacle contre les personnages capables de lancer un sort eau"]
["Habileté","Force","Lance un dé supplémentaire lors des jets de frappe et d'armure concernant l'élément terre"]
["Habileté","Fougue de Rubilax","Tant qu'un autre allié \"Confrérie du Tofu\" est en jeu, Tristepin gagne Taclet et Critique"]
["Habileté","Goultarminator","A chaque fois qu'il met K.O. un Krosmaster, Goultard se soigne de 3"]
["Habileté","Guérison","+1 aux sorts de soin"]
["Habileté","Immunisé","Ne subit pas les dégats élémentaires (soit eau, air, feu et terre)"]
["Habileté","Insensible","Une cible Insensible ignore les effet additionnels des sorts, sauf ceux qui causent des dommages ou des blessures, Les pouvoirs personnels (exemple : Maître de l'Eliacube) ne sont pas affectes par le pouvoir Insensible."]
["Habileté","Inspiration Héroïque","Tant qu'un autre allié \"Confrérie du Tofu\" est en jeu, les sorts de Yugo coûtent 1 PA de moins pour être lancés"]
["Habileté","Intelligence","Lance un dé supplémentaire lors des jets de frappe et d'armure concernant l'élément feu"]
["Habileté","Invisibilité","Srammy ne gêne pas la ligne de vue des personnages qui ne sont pas adjacents à lui. De plus, un personnage qui n'est pas adjacent à Srammy ne peut le blesser"]
["Habileté","Krobalèze","Merkator ne peut subir ou être soigné de plus de 3 blessures à la fois quand il est la cible d'un sort"]
["Habileté","Krosympa","Tant que Captain Amakna est en jeu, ses alliés \"Justicier\" gagnent +1 PDV max et ses alliés de niveau 3 ou plus gagne +1 PM max et +1 PA max"]
["Habileté","Maître Chevalier","Le Chevalier Ténèbre a tous les pouvoirs de chaque Chevalier allié en jeu"]
["Habileté","Maître de l'Eliacube","Chaque fois qu'il inflige au moins 1 blessure à un adversaire adverse, Nox lui fait perdre 1 PA"]
["Habileté","Mise en Garde","Ce Krosmaster et les krosmasters adjacents à lui ont Armure  "]
["Habileté","Pendule","A chaque fois qu'un krosmaster adverse inflige un ou plusieurs dommage(s) à un Granduk allié, le Comte Harebourg perd 1 PDV et gagne 1 PA"]
["Habileté","Perce-Armure","La cible lancera un dé de moins au jet d'armure"]
["Habileté","Portée Démoniaque","Pour chaque tranche de 5 blessures sur Goultard le Barbare, ses sots gagnent +1 de portée"]
["Habileté","Prospection"," lorsqu’un Krosmaster de votre équipe tue un Krosmaster adverse, vous pouvez récupérer dans la réserve 1 kama par pièce de jeu alliée qui possède ce pouvoir"]
["Habileté","Protecteur de Griffes Pourpres","Tant que ce Krosmaster est en jeu, un personnage adverse qui a commencé son tour à côté de lui ne peut pas lancer de sort qui ne ciblerait pas ce Krosmaster durant ce tour "]
["Habileté","Recul X","Le lanceur recule de X de la case ciblée (dans la mesure du possible)"]
["Habileté","Recyclage de Wakfu","A chaque fois que ce Krosmaster cible un Krosmaster adverse avec un sort il se soigne de 1 PV"]
["Habileté","Renvoi de Sort","Ce Krosmaster et les autres krosmasters adjacents à lui ont riposte"]
["Habileté","Repousse de X","La cible est poussée de X cases (dans la mesure du possible)"]
["Habileté","Résistance naturelle","Tant que ce Krosmaster est en jeu les invocations alliées gagnent Armure"]
["Habileté","Résistance X","Le lanceur réduit de 1 les dommages X reçus"]
["Habileté","Revanche X","Active l'effet suivant si il y a X Vilains sur le plateau (alliés ET ennemis)"]
["Habileté","Riposte","A chaque fois que le krosmaster possédant riposte subit une ou plusieures blessure(s), l'attaquant subit 1 blessure"]
["Habileté","Rolbak","A chaque fois qu'un krosmaster adverse lui inflige une ou des blessure(s), le Comte Frigost gagne 1 PA et perd 1 PM"]
["Habileté","Sagesse"," lorsqu’un Krosmaster possédant ce pouvoir tue un Krosmaster adverse, vous prenez 1 GG supplémentaire à votre adversaire. En revanche, si votre adversaire tue le Krosmaster possédant Sagesse, il vous prendra 1 GG de plus"]
["Habileté","Se rapproche X","Le lanceur se rapproche de X de la case ciblée (dans la mesure du possible)"]
["Habileté","Seconde Chance d'Ecaflip","Quand Kerubim Crepin effectue un jet de Coup Critique, Armure, Tacle ou Esquive, il doit relancer tout les dés si chaque résultat n'est pas une réussite. Il doit accepter le second résultat"]
["Habileté","Shushus à gogo","A la fin de son tour, si Remington Smisse à infligé au moins 1 dégat à un Krosmaster, il se soigne de 1, sinon il subit 1 blessure"]
["Habileté","Souillure","Tant que les adversaires sont adjacent à ce personnage, les personnages adverses perdent tous leurs pouvoirs sauf souillure."]
["Habileté","Soutien Draconique","Tant que ce Krosmaster est en jeu, les autres alliés de la confrérie du tofu gagnent 2 PV max "]
["Habileté","Stimulation","Lorsqu'il termine son tour, le lanceur donne +1 PA à ses alliés adjacents pour un tour"]
["Habileté","Tacle","Lance un dé supplémentaire lors du jet de tacle"]
["Habileté","Tir de Converture","Tant qu'un autre allié \"Confrérie du Tofu\" est en jeu, les sorts d'Evangelyne gagnent +1 PO max"]
["Habileté","Trésors de Kerubim","Au début du tour de Papycha, jouer à pile ou face. Pile : Papicha gagne +2 PM pour le prochain tour. Face : Papicha gagne +2 PA pour le prochain tour"]
["Habileté","Vieux de la Vieille","Tant qu'un autre allié \"Confrérie du Tofu\" est en jeu, Ruel gagne Esquive et Armure"]
["Habileté","Vindicte X","Active l'effet suivant si il y a X Justiciers sur le plateau (alliés ET ennemis)"]
["Habileté","Vol de vie","Les dégâts infligés sont convertis en soin sans excéder le maximum"]
["Habileté","Wakfougue","Tant que ce Krosmaster à moins de 6 blessures, il gagne Riposte et +1 PM max"]
["Habileté","Zone Aiguille","A partir de la case ciblée, affecte une ligne de 3"]
["Habileté","Zone Bâton","Affecte un ligne perpendiculaire au lanceur de 3 ayant pour milieux la case ciblée"]
["Habileté","Zone Carré","Affecte un carré de 3X3 ayant pour case centrale la case ciblée"]
["Habileté","Zone Croix","À partir de la case ciblé, affecte les 4 cases adjacentes"]
["Habileté","Zone Marteau","Zone Croix, le lanceur est épargné"]
["Habileté","Zone Pelle","A partir de la case ciblée, affecte une ligne de 2"]
["Habileté","Zone Souffle","Affecte une ligne perpendiculaire au lanceur de 3 ayant pour milieux la case suivant celle ciblée"]

{"sheet":"Base de données","index":5,"n_rows":112,"n_cols":48,"rows_kept":112,"cut":false,"hidden":false,"merged":[[0,44,1,44],[0,45,1,45],[0,46,1,46],[0,47,1,47],[0,0,1,0],[0,1,1,1],[0,2,1,2],[0,3,1,3],[0,4,1,4],[0,5,1,5],[0,8,0,16],[0,17,0,25],[0,26,0,34],[0,35,0,43],[0,6,1,6],[0,7,1,7]]}
["Numéro","Nom","Classe","Niveau","Initiative","PM","PV","PA","Habileté 1",null,null,null,null,null,null,null,null,"Habileté 2",null,null,null,null,null,null,null,null,"Habileté 3",null,null,null,null,null,null,null,null,"Habileté 4",null,null,null,null,null,null,null,null,"Pouvoirs","Collection","Saison","Rareté"]
[null,null,null,null,null,null,null,null,"Nom","Effet","Portée","Augmente","Vision","Coût","Dégâts","Élément","Limite","Nom","Effet","Portée","Augmente","Vision","Coût","Dégâts","Élément","Limite","Nom","Effet","Portée","Augmente","Vision","Coût","Dégâts","Élément","Limite","Nom","Effet","Portée","Augmente","Vision","Coût","Dégâts","Élément","Limite"]
[1,"Alie Zèle","Eniripsa",4,3,3,11,7,"Mot vampirique","Vol de vie","1-4","Oui","Normale","4 PA",1,"Eau","Non","Mot Revitalisant","Zone Croix","1-3","Oui","Normale","3 PA",1,"Soin","Non",null,null,null,null,null,null,null,null,null,null,null,null,null,null,null,null,null,null,"Stimulation","Blind Box 1","Saison 1","Commune"]
[2,"Chevalier Feuille","Chevalier - Tourmenteur",3,0,3,11,5,"Ignominie","Vol de vie",1,"Non","Poing","5 PA",2,"Terre","Non","Crapautage","-1PM ou -2PM","1-3","Oui","Normale","5 PA",1,"Terre","Non",null,null,null,null,null,null,null,null,null,null,null,null,null,null,null,null,null,null,"Résistance Terre","Blind Box 1","Saison 1","Rare"]
[3,"Chevalier Flamme","Chevalier - Tourmenteur",3,4,3,9,7,"Dévastation Incandescante","Zone Croix","1-4","Oui","Normale","4 PA",1,"Feu","Non","Fusion","+2 PA ou +3 PA si autre Chevalier en Jeu","0","Non","Soi-même","1 PA 2 PV","Aucun","Aucun","Non",null,null,null,null,null,null,null,null,null,null,null,null,null,null,null,null,null,null,"Résistance Feu","Blind Box 1","Saison 1","Rare"]
[4,"Chevalier Goutte","Chevalier - Tourmenteur",3,2,3,10,6,"Lourde Heure"," -1 PA","1-3","Oui","Normale","5 PA",2,"Eau","Non","Restauration","+1 Dégât Si un autre Chevalier est un jeu","0-3","Oui","Normale","5 PA",1,"Soin","Non",null,null,null,null,null,null,null,null,null,null,null,null,null,null,null,null,null,null,"Résistance Eau","Blind Box 1","Saison 1","Rare"]
[5,"Chevalier Nuage","Chevalier - Tourmenteur",3,6,4,8,6,"Tir d'un Bord","Aucun","1-5","Oui","Droite","3 PA",1,"Air ","Non","Discute en Fuite","+1 PM ou +2 PM si autre Chevalier en jeu","0","Non","Soi-même","3 PA","Aucun","Aucun","1/tour",null,null,null,null,null,null,null,null,null,null,null,null,null,null,null,null,null,null,"Résistance Air","Blind Box 1","Saison 1","Rare"]
[6,"Chevalier Ténèbres","Chevalier - Tourmenteur",6,8,4,15,7,"Tir Cruel","Aucun","1-4","Oui","Droite","4 PA",2,"Air","Non","Dévastation","Zone Croix","1-3","Oui","Normale","5 PA",2,"Feu","Non","Vil Age","-1 PA Chaque Coup Critique Comte double","1-2","Oui","Normale","6 PA",2,"Eau","Non","Infâmie","-1 PM Vol de Vie","1","Non","Poing","7 PA",2,"Terre","Non","Armure, Maître Chevalier","Blind Box 1","Saison 1","Rare"]
[7,"Coa Gulay","Sacrieur",1,6,3,7,5,"Punition","Aucun",1,"Non","Poing","5 PA",3,"Feu","Non",null,null,null,null,null,null,null,null,null,null,null,null,null,null,null,null,null,null,null,null,null,null,null,null,null,null,null,"Aucun","Blind Box 1","Saison 1","Commune"]
[8,"Daïe Guéri","Eniripsa",1,0,3,5,5,"Mot Blessant","Aucun","1-3","Oui","Normale","5 PA",1,"Air","Non","Mot Doux","Aucun","1-4","Oui","Normale","5 PA",1,"Soin","Non",null,null,null,null,null,null,null,null,null,null,null,null,null,null,null,null,null,null,"Aucun","Blind Box 1","Saison 1","Rare"]
[9,"Dany Osheun","Ecaflip",4,5,4,12,6,"Quitte ou Double","Jouer à Pile ou Face; Pile : Dany perd tout ses PA/PM, Face : Dany gagne immédiatement 2 PA","1-2","Non","Droite","3 PA",2,"Neutre","Non","Pile ou Face","50% de +3 dommages air","2-5","Oui","Normale","5 PA",0,"Air","Non",null,null,null,null,null,null,null,null,null,null,null,null,null,null,null,null,null,null,"Tacle, Esquive","Blind Box 1","Saison 1","Commune"]
[10,"Dokfa Talys","Zobal",5,9,4,14,6,"Furia","Se rapproche 1","1-2","Oui","Droite","2 PA",1,"Air","Non","Apathie","-1 PM","2-5","Oui","Normale","4 PA",1,"Terre","Non",null,null,null,null,null,null,null,null,null,null,null,null,null,null,null,null,null,null,"Critique, Tacle, Aura de Rapidité","Blind Box 1","Saison 1","Rare"]
[11,"Globule la Crapule","Sacrieur",4,3,4,14,7,"Pied du Sacrieur","Perce-Armure",1,"Non","Poing","3 PA",1,"Terre","Non","Folie Sanguinaire","Vol de Vie, +2 dommages eau contre les alliés","1","Non","Normale","2 PA",0,"Eau","Non","Transfert de Vie","Zone Croix","2-4","Oui","Normale","5 Pa + 4 PV",3,"Soin","Non",null,null,null,null,null,null,null,null,null,"Démence","Blind Box 1","Saison 1","Rare"]
[12,"Goultard","Iop",6,7,4,16,8,"Epée Céleste","Zone Croix","1-3","Oui","Normale","4 PA",1,"Feu","Non","Epée du Juste","+5 dommages feu contre cibles lvl>4","1","Non","Poing","5 PA",0,"Feu","Non","Charge","Se Rapproche de 2 cases du personnage ciblé","1-3","Oui","Droite","3 PA",1,"Terre","1/tour","Supercut","-1 PA -1 PM","1","Non","Poing","Aucun",2,"Air","1/partie","Critique, Goultarminator","Blind Box 1","Saison 1","Rare"]
[13,"Jems Blond","Crâ",4,8,3,8,6,"Flèche Ardente","Aucun ","2-6","Oui","Normale","3 PA",1,"Feu","Non","Flèche d'Immolation","Zone Croix","2-4","Oui","Normale","5 PA",2,"Feu","Non","Flèche Explosive","Zone Carré","2-3","Non","Droite","6 PA",3,"Feu","Non",null,null,null,null,null,null,null,null,null,"Esquive, Résistance Feu","Blind Box 1","Saison 1","Commune"]
[14,"Klor Ofil","Sadida",4,4,4,7,5,"Ronces Multiples","Zone Carré, -1 PM","3-4","Non","Droite","5 PA",1,"Terre","Non","Graine de Folle (1)","Met en jeu Poupée Folle dans la case ciblée","1","Non","Poing","4 PA","Aucun","Aucun","Non",null,null,null,null,null,null,null,null,null,null,null,null,null,null,null,null,null,null,"Esquive","Blind Box 1","Saison 1","Commune"]
[15,"Liane Zolie","Sadida",1,2,3,6,5,"Epines","Aucun","1-3","Oui","Droite","5 PA",1,"Terre","Non","Graine de Bloqueuse (1)","Met en jeu Poupée Bloqueuse dans la case ciblée","1","Non","Poing","5 PA","Aucun","Aucun","Non",null,null,null,null,null,null,null,null,null,null,null,null,null,null,null,null,null,null,"Aucun","Blind Box 1","Saison 1","Rare"]
[16,"Luk Ylook","Crâ",2,6,3,5,6,"Flèche Glacée","-1 PM -1 PA","2-3","Oui","Normale","3 PA",1,"Eau","Non","Flèche Repoussante","Repousse la cible de 2 cases","1-5","Oui","Droite","3 PA",0,"Terre","Non",null,null,null,null,null,null,null,null,null,null,null,null,null,null,null,null,null,null,"Résistance Terre, Résistance Eau","Blind Box 1","Saison 1","Rare"]
[17,"Makum Bah","Sadida",4,6,3,13,7,"Larme Empoisonnée","Perce-Armure","1-5","Oui","Normale","5 PA",1,"Eau","Non","Graine de Sacrifiée (2)","Met en jeu Poupée Sacrifiée dans la case ciblée","1","Non","Poing","4 PA","Aucun","Aucun","Non","Puissance Sylvestre","Makum Bah perd tout ses PA/PM","0","Non","Soi-même","2 PA",2,"Soin","1/tour",null,null,null,null,null,null,null,null,null,"Critique, Résistance Terre","Blind Box 1","Saison 1","Commune"]
[18,"Morora","Sram",4,4,3,12,7,"Attaque Mortelle","Aucun",1,"Non","Poing","6 PA",4,"Terre","Non","Peur","Repousse la cible de 1 case","1","Non","Poing","1 PA","Aucun","Aucun","Non","Pose de Piège Mortel (1)","Met en jeu un Piège Mortel dans la case libre ciblée","1","Non","Poing","6 PA","Aucun","Aucun","1/partie",null,null,null,null,null,null,null,null,null,"Tacle, Esquive, Résistance Air","Blind Box 1","Saison 1","Rare"]
[19,"Naz Raël","Ecaflip",2,3,3,8,6,"Puissante Epée d'Ha","Aucun",1,"Non","Poing","3 PA",1,"Terre","Non","Bond du Félin","Téléporte dans la case ciblée","1","Non","Poing","2 PA","Aucun","Aucun","Non",null,null,null,null,null,null,null,null,null,null,null,null,null,null,null,null,null,null,"Résistance Feu, Coups de Griffes","Blind Box 1","Saison 1","Rare"]
[20,"Percimol","Flaqueux",5,2,3,17,3,"Flakatak","Zone Marteau",1,"Non","Poing","6 PA",3,"Eau","Non","Stopator","-1 PM -1 PA","1-3","Oui","Droite","6 PA",1,"Eau","1/tour","Accéléflaqueuse","+6PA immédiats","0","Non","Soi-même","3 PM 1PA","Aucun","Aucun","Non",null,null,null,null,null,null,null,null,null,"Résistance Eau, Flaquage","Blind Box 1","Saison 1","Rare"]
[21,"Quentin Flush","Ecaflip",1,2,3,6,5,"Loterie","Jouer 3 fois à Pile ou Face; Pile : Quentin subit -1PV, Face : +1 dommage eau","1-4","Oui","Normale","5 PA",1,"Eau","Non",null,null,null,null,null,null,null,null,null,null,null,null,null,null,null,null,null,null,null,null,null,null,null,null,null,null,null,"Aucun","Blind Box 1","Saison 1","Commune"]
[22,"Remington Smisse","Roublard",5,5,4,13,6,"Tir Performant","Perce-Armure","2-5","Oui","Normale","3 PA",1,"Feu","Non","Pulsar","Inflige 1 dommage feu par PM/PA restant; Remington perd tous ses PM/PA","1-3","Non","Normale","2 PM 3PA",0,"Feu","1/tour","Lancé : Bombe Incendiaire (2)","Met en jeu une Bombe Incendiaire dans la case ciblée","1-3","Non","Libre","3 PA","Aucun","Aucun","Non",null,null,null,null,null,null,null,null,null,"Esquive, Shushus à gogo, Bombes","Blind Box 1","Saison 1","Rare"]
[23,"Shak Shaka","Roi des Robomates",5,0,3,15,7,"Insectes Robomatiques","Aucun","1-4","Non","Libre","3 PA",1,"Air","Non","Toucher du Bois","-1 PA, Jouer à pile ou face pour infliger +4  dommages terre","1","Non","Poing","4 PA",0,"Terre","1/tour","Caprice","Jouer à pile ou face pour gagner 5 PA","0","Non","Soi-même","2 PA","Aucun","Aucun","1/partie",null,null,null,null,null,null,null,null,null,"Tacle, Canne Spray Fixateur","Blind Box 1","Saison 1","Rare"]
[24,"Srammy","Sram",2,8,3,6,6,"Coup Sournois","Repousse la cible de 2 cases",1,"Non","Poing","3 PA",1,"Air","Non",null,null,null,null,null,null,null,null,null,null,null,null,null,null,null,null,null,null,null,null,null,null,null,null,null,null,null,"Invisibilité","Blind Box 1","Saison 1","Commune"]
[25,"Tony N. Truhan","Roublard",2,2,3,7,6,"Tir X","Aucun","2-5","Oui","Normale","5 PA",1,"Air","Non","Lancé de Tornabombe (2)","Met en jeu une Tornabombe dans la case libre ciblée","1","Non","Poing","3 PA","Aucun","Aucun","Non",null,null,null,null,null,null,null,null,null,null,null,null,null,null,null,null,null,null,"Résistance Air, Bombes","Blind Box 1","Saison 1","Commune"]
[26,"Zoubo l'Amiche","Zoubo l'Amiche",2,4,3,7,6,"Appeau","Vol de vie, Attire de 1 case","1-3","Oui","Droite","4 PA",1,"Eau","Non","Distance","Repousse la cible de 1 case","4-6","Oui","Droite","4 PA",1,"Feu","Non",null,null,null,null,null,null,null,null,null,null,null,null,null,null,null,null,null,null,"Armure","Blind Box 1","Saison 1","Commune"]
[27,"Captain Amakna","Justicier - Boss",6,8,4,12,9,"Biceps","-1 PA pour le premier lancé du tour",1,"Non","Poing","3 PA",1,"Terre","Non","Kickmaster","Captain se rapproche de 3 case, Perce-Armure","1-4","Oui","Droite","3 PA",2,"Neutre","1/tour","Discoplace","Aucun","1-4","Oui","Libre","4 PA",1,"Feu","Non","Mocalisation","+2 PM au tour suivant, Met fin au tour","0","Non","Soi-même","2 PA","Aucun","Aucun","1/tour","Résistance Terre, Résistance Feu, Krosympa","Duel Pack 1","Saison 1","Rare"]
[28,"Merkator","Steamer - Vilain - Boss",6,2,3,17,8,"Pulvérisation","Zone Pelle, -1 PM, Merkator recule de 1 case",1,"Non","Poing","5 PA",3,"Air","Non","Bouffée de Tapeur","Zone Croix, Perce-Armure","2-3","Oui","Normale","1PV 3 PA",1,"Eau","Non","Vidange","Aucun","0","Non","Soi-même","2 PA",1,"Soin","1/tour","Bouton-Pression","+1 PM +4 PA tour suivant, les sorts d'attaques lancé ce tour infligent +1 dommage eau et air","0","Non","Soi-même","5 PV","Aucun","Aucun","1/partie","Résistance Air, Résistance Eau, Krobalèze","Duel Pack 1","Saison 1","Rare"]
[29,"Goultard le Barbare","Iop - Possédé",6,5,3,25,8,"Secousse","Zone Croix","1-3","Non","Normale","1 PV 4PA",1,"Terre","Non","Epée Directe","+2 dommages terre contre les cibles lvl < 3","1-2","Oui","Droite","2 PV 6 PA",2,"Terre","Non","Vapeur Noire","Attire la cible de 2 cases","1-4","Oui","Droite","2 PV 2PA",0,"Air","1/tour","Sombre-Nuage","Zone Carré, Perce Armure","3-4","Oui","Normale","3 PV 1PA",2,"Eau","1/partie","Armure, Portée Démoniaque","DVD Wakfu","Saison 1","Rare"]
[30,"Comte Harebourg","Xelor - Boss",6,8,4,16,8,"Effet de Serre","Vol de vie, Perce-Armure",1,"Non","Poing","5 PA",1,"Feu","Non","Comte Goutte","Aucun","3-8","Oui","Normale","2 PA",0,"Eau","Non","Appel de Granduk (3)","Met en jeu un Granduk dans la case libre ciblée","1-3","Non","Libre","4 PA","Aucun","Aucun","Non","Oscillation","Echange de Position avec le Granduk ciblé","1-3","Non","Libre","3 PA","Aucun","Aucun","1/tour","Insensible, Pendule","Extension Frigost","Saison 1","Rare"]
[31,"Anna Tommy","Sacrieur",3,9,3,12,6,"Assaut","Echange de position avec le personnage ciblé","1-2","Non","Droite","3 PA",1,"Terre","Non","Transposition","Echange de position avec le personnage allié ciblé","1-3","Non","Normale","3 PA","Aucun","Aucun","Non",null,null,null,null,null,null,null,null,null,null,null,null,null,null,null,null,null,null,"Aucun","KrosMaster Arena","Saison 1","Commune"]
[32,"Bad Aboum","Roublard",3,3,3,9,6,"Tir de Recul","Bad Aboum recule de 1case","1-3","Oui","Droite","3 PA",1,"Eau","Non","Lancé de Bombe à Eau","Met en jeu une Bombe à Eau dans la case libre ciblée","1-3","Non","Normale","3 PA","Aucun","Aucun","Non",null,null,null,null,null,null,null,null,null,null,null,null,null,null,null,null,null,null,"Tacle, Esquive, Bombes","KrosMaster Arena","Saison 1","Commune"]
[33,"Guy Yomtella","Crâ",3,7,3,6,6,"Flèche Harcelante","Aucun",null,"Oui","Normale","3 PA",1,"Air","Non","Tir à Distance","Pour 1 tour, +3 PO et perd tout ses PM","0","Non","Soi-même","1 PA","Aucun","Aucun","Non",null,null,null,null,null,null,null,null,null,null,null,null,null,null,null,null,null,null,"Esquive","KrosMaster Arena","Saison 1","Commune"]
[34,"Kréol Panikon","Zobal",3,4,3,9,6,"Dard Irritant","Aucun","1-5 ","Oui","Normale","5 PA",1," Feu","Non","Souflette","Repousse de 3 cases","1-3","Non","Droite","1 PA",3,"Air","1/partie",null,null,null,null,null,null,null,null,null,null,null,null,null,null,null,null,null,null,"Critique","KrosMaster Arena","Saison 1","Commune"]
[35,"Opée Tissoin","Eniripsa",3,1,3,8,6,"Mot Interdit","Perce-Armure","2-4","Oui","Normale","4 PA",1,"Feu","Non","Mot Soignant","Aucun","0-3","Oui","Normale","3 PA",1,"Soin","Non",null,null,null,null,null,null,null,null,null,null,null,null,null,null,null,null,null,null,"Aucun","KrosMaster Arena","Saison 1","Commune"]
[36,"Oscar Nak","Sram",3,6,3,10,6,"Arnaque","Vol de vie",1,"Non","Poing","3 PA",1,"Eau","Non","Sournoiserie","Perce-armure","2-3","Oui","Normale","3 PA",0,"Terre","Non",null,null,null,null,null,null,null,null,null,null,null,null,null,null,null,null,null,null,"Armure","KrosMaster Arena","Saison 1","Commune"]
[37,"Reine des Tofus","Osamodas",3,8,4,8,6,"Dan To Fu","+1 dommage air par Tofu adjacent à la cible","1-3","Oui","Normale","3 PA",1,"Air","Non","Invocation de Tofu (3)","Met en jeu un Tofu dans la case libre ciblée","1","Non","Poing","3 PA","Aucun","Aucun","Non",null,null,null,null,null,null,null,null,null,null,null,null,null,null,null,null,null,null,"Critique, Esquive","KrosMaster Arena","Saison 1","Rare"]
[38,"Roi des Bouftous","Osamodas",3,2,3,10,7,"Bouftabaffe","Inflige +2 dommages terre si Bouftou adjacent à la cible",1,"Non","Poing","3 PA",1,"Terre","Non","Invocation de Bouftou (1)","Met en jeu un Bouftou dans la case libre ciblée","1","Non","Poing","4 PA","Aucun","Aucun","Non",null,null,null,null,null,null,null,null,null,null,null,null,null,null,null,null,null,null,"Armure, Tacle","KrosMaster Arena","Saison 1","Rare"]
[39,"Amalia","Sadida- Confrérie du Tofu",3,4,3,6,6,"Ronces Défensives","Zone Croix","1-2","Oui","Normale","3 PA",1,"Terre","Non","Attachement","Atture l'allié ciblé de 1 case","2-5","Oui","Droite","3 PA","Aucun","Aucun","Non",null,null,null,null,null,null,null,null,null,null,null,null,null,null,null,null,null,null,"Bénédiction de Sadida","Pack Confrérie du Tofu","Saison 1","Rare"]
[40,"Evangelyne","Crâ - Confrérire du Tofu",3,8,3,8,6,"Flèche Magique","Aucun","2-5","Oui","Normale","3 PA",1,"Air","Non","Flèche Destructrice","Perce-armure","4-5","Oui","Droite","4 PA",2,"Terre","Non",null,null,null,null,null,null,null,null,null,null,null,null,null,null,null,null,null,null,"Tir de Couverture","Pack Confrérie du Tofu","Saison 1","Rare"]
[41,"Nox","Xélor",6,10,2,14,8,"Epée Aiguille","Aucun","2-6","Oui","Normale","3 PA",1,"Air","Non","Vol du Temps","Vole 1PA (qui sera donné au tour suivant) à la cible","1-4","Oui","Normale","4 PA",0,"Eau","Non","Rayon d'Energie Destructrice","Zone Croix","2-3","Oui","Normale","5 Pa",2,"Feu","Non","Dérive Temporelle","Déplace Nox dans la case inocupée ciblé","1-3","Non","Libre","2 PA","Aucun","Aucun","1/tour","Armure, Maître de l'Eliacube","Pack Confrérie du Tofu","Saison 1","Rare"]
[42,"Ruel Stroud","Enutrof - Confrérie du Tofu",3,6,3,8,6,"Pelle Fantôme","Aucun","1-3","Non","Libre","3 PA",1,"Eau","Non","Roulage de Pelle","Vole 1PM à la cible","1-5","Oui","Normale","4 PA",1,"Terre","Non",null,null,null,null,null,null,null,null,null,null,null,null,null,null,null,null,null,null,"Vieux de la Vieille","Pack Confrérie du Tofu","Saison 1","Rare"]
[43,"Tristepin","Iop - Confrérie du Tofu",3,2,3,10,6,"Epée Shushu","Aucun",1,"Non","Poing","4 PA",3,"Feu","Non","Bond","Déplace Tristepin dans la case inoccupée ciblée","1-2","Non","Normale","2 PA","Aucun","Aucun","1/tour",null,null,null,null,null,null,null,null,null,null,null,null,null,null,null,null,null,null,"Fougue de Rubilax","Pack Confrérie du Tofu","Saison 1","Rare"]
[44,"Yugo","Eliatrope - Confrérie du Tofu",3,7,3,8,7,"Projection de Wakfu","Aucun","1-2","Oui","Normale","3 PA",1,"Neutre","Non","Disque de Transfert","Déplace Yugo ou un allié adjacent à lui dans la case inoccupée ciblée","1-2","Non","Libre","4 PA","Aucun","Aucun","Non",null,null,null,null,null,null,null,null,null,null,null,null,null,null,null,null,null,null,"Inspiration Héroïque","Pack Confrérie du Tofu","Saison 1","Rare"]
[45,"Gaspard Fay","Steamer",3,3,3,10,6,"Sonartillage","Perce-Armure","1-2","Non","Normale","3 PA",1,"Air","Non","Serumphy","+2 PA Prochain tour","0","Non","Soi-même","4 PA",1,"Soin","Non",null,null,null,null,null,null,null,null,null,null,null,null,null,null,null,null,null,null,"Armure","Pack Gaspard Fay","Saison 1","Rare"]
[46,"Joris","Aucun",2,8,5,2,5,"Chatouilles","+2 dommages neutre contre les bandits",1,"Non","Poing","5 PA",1,"Neutre","Non",null,null,null,null,null,null,null,null,null,null,null,null,null,null,null,null,null,null,null,null,null,null,null,null,null,null,null,"Insensible, Immunisé","Pack Kerubim","Saison 1","Rare"]
[47,"Kerubim Crépin","Ecaflip",4,9,4,13,4,"Griffe de Céangal","-1 PA","1-2","Oui","Normale","3 PA",1,"Air","Non","Jackpot","Jouer 3 fois à pile ou face, inflige +7 dommages feu si le tirage indique 3 faces","1-3","Oui","Normale","7 PA",0,"Feu","Non","Griffe Joueuse","Zone Aiguille","1","Non","Poing","4 PA",2,"Terre","1/tour",null,null,null,null,null,null,null,null,null,"Seconde Chance d'Ecaflip","Pack Kerubim","Saison 1","Rare"]
[48,"Lou","Ouginak",2,2,3,6,6,"Martifouette","Perce-Armure, +1 PM + 2 PA",1,"Non","Poing","5 PA",1,"Eau","Non",null,null,null,null,null,null,null,null,null,null,null,null,null,null,null,null,null,null,null,null,null,null,null,null,null,null,null,"Dressage","Pack Kerubim","Saison 1","Rare"]
[49,"Papycha","Ecaflip",4,4,2,11,6,"Vieux Réflexes","Aucun",1,"Non","Poing","2 PA",1,"Air","Non","Destin d'Ecaflip","Repousse la cible de 2 cases, -2PM","1-2","Oui","Droite","4 PA",0,"Terre","1/tour","Félinpourlotre","Repousse la cible de 2 cases; un ennemi subit 2 et papycha se soigne de 2, un allié est soigné de 3","3-4","Oui","Droite","4 PA","Aucun","Aucun","1/tour",null,null,null,null,null,null,null,null,null,"Trésors de Kérubim","Pack Kerubim","Saison 1","Rare"]
[50,"Comte Frigost","Xélor - Boss",6,6,5,14,10,"Avalanche","Zone Aiguille","2-4","Oui","Droite","4 PA",2,"Terre","Non","Harebourrasque","+2 Dommages air contre les invocations ciblées","1-4","Non","Libre","4 PA",1,"Air","Non","Tournée des Granduks (4)","Zone Marteau, Met en jeu un Granduk dans chaque case libre ciblée","1","Non","Poing","12 PA","Aucun","Aucun","Non","Blizarma","Attire la cible de 3 cases","3-8","Oui","Droite","8 PA",3,"Neutre","1/partie","Insensible, Rolbak","Précommandes","Saison 1","Rare"]
[51,"Adamaï","Dragon - Confrérie du Tofu",3,7,3,8,6,"Duo Dynamite","+1 dommage feu si Yugo adjacent à la cible","1-3","Non","Normale","3 PA",1,"Feu","Non","Coup de Main du Dragon","Soigne +1 si Yugo est adjacent à la cible","1-3","Non","Normale","3 PA",1,"Soin","1/cible","Métamorphose","Remplace cet Adamaï par un autre","0","Non","Soi-même","2 PA","Aucun","Aucun","Non",null,null,null,null,null,null,null,null,null,"Soutien Draconique","Blind Box 2","Saison 2","Rare"]
[52,"Ayan","Eliatrope",2,5,3,6,6,"Brûlure de Wakfu","Aucun",1,"Non","Poing","2 PA",1,"Feu","Non","Tunnel de Wakfu","Déplace Ayan dans la case libre ciblée","1-4","Non","Droite","3 PA","Aucun","Aucun","1/tour",null,null,null,null,null,null,null,null,null,null,null,null,null,null,null,null,null,null,"Farmeur, Intelligence","Blind Box 2","Saison 2","Commune"]
[53,"Chloé Malette","Steamer",3,3,3,10,6,"Flibuste","Perce-Armure, +2 PA à la Tourelle ciblée","1-3","Oui","Droite","3 PA",1,"Air","Non","Pose d'Harponneuse (2)","Met en jeu une Harponneuse dans la case libre ciblée","1-2","Oui","Droite","3 PA","Aucun","Aucun","1/tour",null,null,null,null,null,null,null,null,null,null,null,null,null,null,null,null,null,null,"Armure, Sagesse","Blind Box 2","Saison 2","Commune"]
[54,"Diver Birel","Enutrof",3,6,3,10,6,"Pelle du Jugement","-1 PM","1-4","Oui","Normale","4 PA",2,"Eau","Non","Invocation de Pelle Animée (1)","Met en jeu une Pelle Animée dans la case libre ciblée","1","Non","Poing","2 PA","Aucun","Aucun","1/partie",null,null,null,null,null,null,null,null,null,null,null,null,null,null,null,null,null,null,"Esquive, Farmeur","Blind Box 2","Saison 2","Commune"]
[55,"Duc Rex","Féca",5,7,4,12,7,"Retour du Bâton","Les prochains sorts lancés par Duc Rex inflige +1 dommage Terre ce tour",1,"Non","Poing","3 PA",1,"Terre","Non","Aveuglement","-1 PA -1 PO","1-4","Oui","Normale","4 PA",1,"Neutre","1/tour","Téléportation","Déplace Duc Rex dans la case libe ciblée","1-4","Non","Libre","3 PA","Aucun","Aucun","1/partie",null,null,null,null,null,null,null,null,null,"Tacle, Bouclier Féca","Blind Box 2","Saison 2","Rare"]
[56,"Edmond Dentier","Enutrof",1,3,3,5,5,"Clé Réductrice","-1 PO","3-6","Non","Normale","5 PA",1,"Terre","Non",null,null,null,null,null,null,null,null,null,null,null,null,null,null,null,null,null,null,null,null,null,null,null,null,null,null,null,"Prospection","Blind Box 2","Saison 2","Commune"]
[57,"Elogio","Osamodas",4,1,3,10,7,"Griffe Cinglante","Aucun","1-6","Oui","Normale","3 PA",1,"Eau","Non","Frappe du Craqueleur","Zone Carré, +2 dommages Terre à la case centrale","1-3","Oui","Droite","6 PA",1,"Terre","Non","Invoc. De Craqueboule (2)","Met en jeu un Craqueboule dans la case libre ciblée","1","Non","Poing","4 PA","Aucun","Aucun","1/tour",null,null,null,null,null,null,null,null,null,"Résistance Terre, Crafteur","Blind Box 2","Saison 2","Commune"]
[58,"Emma Sacre","Iop",4,0,4,12,6,"Epée de Iop","Zone Croix","1-3","Oui","Normale","4 PA",1,"Air","Non","Colère de Iop","Aucun","1","Non","Poing","8 PA",4,"Terre","Non","Précipitation","-2 PA au prochain tour, Emma Sacre gagne immédiatement 4 PA","0","Non","Soi-même","2 PA","Aucun","Aucun","1/tour",null,null,null,null,null,null,null,null,null,"Critique, Tacle, Compulsion","Blind Box 2","Saison 2","Rare"]
[59,"Gegard Laport","Féca",2,4,3,7,6,"Attaque Nuageuse","Aucun","1-3","Oui","Droite","4 PA",1,"Air","Non","Bulle","Aucun","4-5","Non","Libre","2 PA",0,"Eau","1/cible",null,null,null,null,null,null,null,null,null,null,null,null,null,null,null,null,null,null,"Sagesse, Renvoi de Sort","Blind Box 2","Saison 2","Commune"]
[60,"Gein","Sram",6,12,5,13,7,"Fourvoiement","Cibles Multiples",1,"Non","Poing","4 PA",3,"Air","Non","Insecticide","+2 dommages Terre au Mob ciblé","1-3","Non","Libre","1 PA",0,"Terre","1/cible","Pose de Piège Sournois (4)","Met en jeu un Piège Sournois dans la case libre ciblée","1-3","Non","Normale","3 PA","Aucun","Aucun","Non","Pulsion de Chakra","Gein gagne immédiatement 3PA, Gein gagne Critique jusqu'à la fin du combat","0","Non","Soi-même","0 PA","Aucun","Aucun","1/partie","Armure, Force, Agilité","Blind Box 2","Saison 2","Rare"]
[61,"Harry Saf","Osamodas",5,5,3,12,7,"Corbeau","Aucun","2-4","Oui","Libre","3 PA",1,"Feu","Non","Piqûre Motivante","+1 PA ou +2 PA si cible = mob","1-3","Oui","Normale","2 PA",1,"Soin","1/cible","Invoc. De Dragoune Rose","Met en jeu une Dragoune Rose dans la case libre ciblée","1-2","Oui","Normale","5 PA","Aucun","Aucun","1/partie",null,null,null,null,null,null,null,null,null,"Farmeur, Prospection, Résistance Naturelle","Blind Box 2","Saison 2","Rare"]
[62,"Henual","Xélor",2,6,3,5,7,"Flétrissement","Perce-Armure","1-4","Oui","Normale","4 PA",1,"Air","Non","Dévouement","Cibles Multiples, +2 PA aux cibles sans marqueurs + PA","1","Non","Poing","3 PA","Aucun","Aucun","1/tour",null,null,null,null,null,null,null,null,null,null,null,null,null,null,null,null,null,null,"Résistance Air","Blind Box 2","Saison 2","Commune"]
[63,"Hercul Eudla","Enutrof",4,8,4,11,7,"Pelle Massacrante","Zone Croix","2-4","Oui","Normale","5 PA",2,"Eau","Non","Maladresse","-1 PM","1-4","Non","Normale","2 PA","Aucun","Aucun","1/cible","Accélération","+2 PM à la cible sans marqueur + PM","0-4","Non","Normale","3 PA","Aucun","Aucun","1/tour",null,null,null,null,null,null,null,null,null,"Résistance Eau, Prospection, Chance","Blind Box 2","Saison 2","Rare"]
[64,"Jerry Orlo","Xélor",1,2,2,4,6,"Poussière Temporelle","Zone Carré, -1 PA","3-4","Non","Normale","5 PA",1,"Feu","Non",null,null,null,null,null,null,null,null,null,null,null,null,null,null,null,null,null,null,null,null,null,null,null,null,null,null,null,"Aucun","Blind Box 2","Saison 2","Rare"]
[65,"Katsou Mee","Iop",3,2,3,10,6,"Epée du Destin","+2 dommages feu si Katsou Mee à déjà blessé la cible ce tour",1,"Non","Poing","3 PA",1,"Feu","Non","Sentence","Vol de Vie","2-3","Oui","Libre","5 PA",1,"Air","Non",null,null,null,null,null,null,null,null,null,null,null,null,null,null,null,null,null,null,"Crafteur, Agilité","Blind Box 2","Saison 2","Commune"]
[66,"Kitty Rage","Iop",5,5,3,16,8,"Tempête de Puissance","Perce-Armure","3-4","Non","Normale","3 PA",1,"Feu","Non","Couper","Zone Aiguille, -1 PM","1","Non","Poing","4 PA",1,"Feu","1/tour","Mutilation Ardente","Les sorts de Kitty Rage infligent +1 dommage feu ce tour","0","Non","Soi-même","1 PV 2 PA","Aucun","Aucun","Non",null,null,null,null,null,null,null,null,null,"Esquive, Résistance Feu","Blind Box 2","Saison 2","Commune"]
[67,"Kivin","Eliatrope",1,0,3,5,5,"Feinte de Wakfu","Perce-Armure","1-4","Oui","Libre","5 PA",1,"Terre","Non","Fuite de Walfu","Déplace Kivin dans la case libre ciblée","1-3","Non","Libre","0 PA","Aucun","Aucun","1/partie",null,null,null,null,null,null,null,null,null,null,null,null,null,null,null,null,null,null,"Sagesse","Blind Box 2","Saison 2","Commune"]
[68,"Mali Bouh","Pandawa",5,5,4,13,7,"Picole","Recul 1, Maki Bouh se soigne de 1",1,"Non","Poing","3 PA",2,"Eau","Non","Lait de Bambou","Retire les marqueurs PA/PM/PO de la cible","1-2","Oui","Normale","2 PA","Aucun","Aucun","Non","Chamrak","Déplace le personnage adverse adjacent dans la case libre ciblée. Ce personnage subit -1 PV","1-3","Oui","Droite","4 PA","Aucun","Aucun","1/tour",null,null,null,null,null,null,null,null,null,"Souillure","Blind Box 2","Saison 2","Commune"]
[69,"Pandalida","Pandawa",3,5,3,11,6,"Souffle Enflammé","Zone Souffle",1,"Non","Poing","1 PV 4 PA",2,"Feu","Non","Gueule de Bois","Repousse de 1, Rapproche 1 du personnage ciblé","1","Non","Poing","2 PA",0,"Terre","Non",null,null,null,null,null,null,null,null,null,null,null,null,null,null,null,null,null,null,"Tacle, Force, Intelligence","Blind Box 2","Saison 2","Commune"]
[70,"Poochan","Pandawa",1,5,3,5,5,"Coups de Bambou","Cibles Multiples",1,"Non","Poing","5 PA",1,"Air","Non","Karcham","Déplace l'allié adjacent non-Boss dans la case libre ciblée. Ce personnage subit -1PV","1-3","Non","Droite","5 PA","Aucun","Aucun","Non",null,null,null,null,null,null,null,null,null,null,null,null,null,null,null,null,null,null,"Aucun","Blind Box 2","Saison 2","Rare"]
[71,"Qilby","Eliatrope - Confrérie du Tofu",6,6,2,16,10,"Rempart","Zone Baton, -1 PA -1 PM -1 PO","1-3","Oui","Droite","5 PA",1,"Neutre","Non","Mauvais Présage","Perce-armure","1-6","Oui","Libre","3 PA",1,"Neutre","1/cible","Binocles","+2 PO","0-2","Oui","Libre","1 PA","Aucun","Aucun","1/tour","Trahison","S'il est le seul allié en jeu, remplacer Qilby par un autre","0","Non","Soi-même","0 PA",5,"Soin","1/partie","Prospection, Beuzeur","Blind Box 2","Saison 2","Rare"]
[72,"Raoul Bak","Xélor",3,8,3,8,6,"Horloge","Vole 1 PA","2-5","Oui","Normale","6 PA",2,"Eau","Non","Ralentissement","-1 PA","2-5","Non","Normale","1 PA","Aucun","Aucun","1/cible",null,null,null,null,null,null,null,null,null,null,null,null,null,null,null,null,null,null,"Critique, Chance","Blind Box 2","Saison 2","Commune"]
[73,"Riktus Amakna","Bandit",2,3,3,7,6,"Claymore d'Amakna","Vol de vie, Perce-Armure",1,"Non","Poing","4 PA",1,"Terre","Non","Muscu","-1 PM si la cible a déjà été blessée par un Bandit durant votre tour","1","Non","Poing","2 PA",0,"Terre","1/cible",null,null,null,null,null,null,null,null,null,null,null,null,null,null,null,null,null,null,"Force","Blind Box 2","Saison 2","Spéciale"]
[74,"Riktus Bonta","Bandit",2,3,3,5,6,"Voûte de Bonta","Aucun","2-5","Oui","Normale","4 PA",1,"Air","Non","Torsion","-1 PO si la cible a déjà été blessée par un Bandit durant votre tour","2-5","Oui","Normale","2 PA",0,"Air","1/cible",null,null,null,null,null,null,null,null,null,null,null,null,null,null,null,null,null,null,"Agilité","Blind Box 2","Saison 2","Spéciale"]
[75,"Riktus Brakmar","Bandit",2,3,3,8,6,"Cognée de Brakmar","Cibles Multiples",1,"Non","Poing","4 PA",2,"Feu","Non","Ruse","+1 Dommage feu si la cible a déjà été blessée par un bandit durant votre tour","1","Non","Poing","2 PA",0,"Feu","1/cible",null,null,null,null,null,null,null,null,null,null,null,null,null,null,null,null,null,null,"Intelligence","Blind Box 2","Saison 2","Spéciale"]
[76,"Riktus Elite","Bandit",4,6,3,12,8,"Marre-Tôt","Zone Marteau",1,"Non","Poing","6 PA",3,"Neutre","Non","Marre-Shukrut","+1 PM au bandit ciblé","1-4","Non","Libre","2 PA","Aucun","Aucun","1/cible","Marre-Ôdeur","+2 PA au bandit ciblé","1-4","Non","Libre","2 PA","Aucun","Aucun","1/cible",null,null,null,null,null,null,null,null,null,"Insensible, Chef de Bande","Blind Box 2","Saison 2","Commune"]
[77,"Riktus Sufokia","Bandit",2,3,3,6,6,"Torche de Sufokia","Zone Pelle","1-3","Oui","Droite","4 PA",1,"Eau","Non","Apnée","-1 PA si la cible a déjà été blessée par un Bandit durant votre tour","1-3","Oui","Droite","2 PA",0,"Eau","1/cible",null,null,null,null,null,null,null,null,null,null,null,null,null,null,null,null,null,null,"Chance","Blind Box 2","Saison 2","Spéciale"]
[78,"Sam Hyrrit","Osamodas",2,0,3,5,6,"Fouet","Inflige +2 dommages terre au Mob ciblé","1-3","Oui","Normale","3 PA",1,"Terre","Non","Invoc. de Prespic (1)","Met en jeu un Pespic dans la case libre ciblée","1","Non","Poing","6 PA","Aucun","Aucun","Non",null,null,null,null,null,null,null,null,null,null,null,null,null,null,null,null,null,null,"Aucun","Blind Box 2","Saison 2","Commune"]
[79,"Sarah Croche","Steamer",4,4,3,13,7,"Vapor","Recul 1, +2 PA à la tourelle ciblée","1-4","Oui","Droite","4 PA",2,"Feu","Non","Ecume","Zone Croix, +1 PO aux Tourelles ciblées","1-3","Oui","Droite","3 PA",1,"Eau","Non","Pose de Tactirelle","Met en jeu une Tactirelle dans la case ciblée","1-2","Oui","Droite","3 PA","Aucun","Aucun","1/tour",null,null,null,null,null,null,null,null,null,"Esquive, Crafteur","Blind Box 2","Saison 2","Commune"]
[80,"Steamy Wonder","Steamer",1,0,3,6,5,"Courant","+2 PA à la Tourelle ciblée","1-3","Oui","Droite","5 PA",1,"Eau","Non","Pose de Gardienne (1)","Met en jeu une Gardienne dans la case libre ciblée","1-2","Oui","Droite","5 PA","Aucun","Aucun","1/tour",null,null,null,null,null,null,null,null,null,null,null,null,null,null,null,null,null,null,"Aucun","Blind Box 2","Saison 2","Rare"]
[81,"Thio","Eliatrope",4,10,3,10,7,"Butoir Wakfu","Rapproche 1","1-4","Oui","Droite","4 PA",1,"Air","Non","Wakfu Vampirique","Vol de Vie, Perce-Armure","1-3","Oui","Normale","2 PA",1,"Neutre","1/cible","Transfert Groupé","Zone Croix, Déplace Thio ainsi que tous les Krosmaster alliés adjacents à lui dansles cases libres ciblées, en conservant la même disposition","1-4","Non","Libre","1 PA","Aucun","Aucun","1/partie",null,null,null,null,null,null,null,null,null,"Insensible, Recyclage de Wakfu","Blind Box 2","Saison 2","Rare"]
[82,"Wally Failleur","Féca",1,4,3,6,5,"Attaque Naturelle","Aucun","1-4","Oui","Normale","5 PA",1,"Feu","Non",null,null,null,null,null,null,null,null,null,null,null,null,null,null,null,null,null,null,null,null,null,null,null,null,null,null,null,"Mise en Garde","Blind Box 2","Saison 2","Commune"]
[83,"Adamaï - Dragon","Dragon - Confrérie du Tofu",3,7,3,10,6,"Double Dragon","-1 PA si Yugo est adjacent à la cible",1,"Non","Poing","3 PA",1,"Eau","Non","Tchise","Rapproche de 2 si Yugo est adjacent à la cible","1-3","Non","Droite","2 PA",2,"Eau","1/tour","Métamorphose","Remplace cet Adamaï par un autre","0","Non","Soi-même","2 PA","Aucun","Aucun","Non",null,null,null,null,null,null,null,null,null,null,"Flunch 2014","Saison 2","Rare"]
[84,"Cléophée","Crâ - Confrérire du Tofu",2,7,3,7,6,"Culbute","Déplace Cléophée dans une des cases libres adjacentes au personnage adverse ciblé",1,"Non","Poing","2 PA",1,"Air","1/cible","Tir Impétueux","Perd 1 dommage air par case de distance à la cible","2-5","Non","Droite","2 PA",5,"Air","1/partie",null,null,null,null,null,null,null,null,null,null,null,null,null,null,null,null,null,null,"Esquive, Dynamo","Flunch 2014","Saison 2","Rare"]
[85,"Phaéris - Anéanti","Dragon",1,5,3,7,5,"Bastion","Phaéris se soigne de 2",1,"Non","Poing","5 PA",1,"Feu","Non",null,null,null,null,null,null,null,null,null,null,null,null,null,null,null,null,null,null,null,null,null,null,null,null,null,null,null,"Protecteur de Griffes Pourpres","Flunch 2014","Saison 2","Rare"]
[86,"Qilby - Traître","Eliatrope - Boss",6,6,3,14,10,"Déluge de Wakfu","Cibles Multiples","1-2","Non","Libre","7 PA",4,"Eau","Non","Déflagration de Wakfu","Repousse 4","1-2","Noon","Droite","6 PA",4,"Feu","Non","Faux-Derche","+3 PA à la cible","1-2","Non","Normale","5 PA",4,"Terre","1/cible","Faux-Pas","Déplace Qilby dans une case libe adjacente à lui, Qilby gagne +1 PA au prochain tour","1-2","Non","Normale","4 PA",4,"Air","1/cible","Insensible, Faux-Frère","Flunch 2014","Saison 2","Rare"]
[87,"Tristepin - Tristecoeur","Iop - Possédé - Confrérie du Tofu",5,10,3,15,7,"Mandale","+ 1 dommage Terre contre les Boss",1,"Non","Poing","3 PA",1,"Terre","Non","Shushutage","+6 dommages Terre aux cibles lvl>5","1","Non","Poing","6 PA",0,"Terre","Non","Bond Rubilesque","Déplace Tristepin dans la case libre ciblée","1-2","Non","Normale","1 PA","Aucun","Aucun","1/tour",null,null,null,null,null,null,null,null,null,"Force, Chasse au Gros","Flunch 2014","Saison 2","Rare"]
[88,"Yugo - Jeune Roi","Eliatrope - Confrérie du Tofu",4,8,3,12,8,"Wakfurie","+2 dommages feu si Yugo a perdu 6 PV ou plus",1,"Non","Poing","1 PV 4 PA",1,"Feu","Non","Disque d'Assaut","Déplace Yugo dans la case linre ciblée, puisil inflige -1 PV à chaque personnage adjacent à lui","1-2","Oui","Libre","1 PM 3 PA","Aucun","Aucun","Non","Genti Tawa","Inflige -1 Dommage neutre pour chaque autre Eliatrope allié en jeu","1-3","Oui","Normale","4 PA",0,"Neutre","1/tour",null,null,null,null,null,null,null,null,null,"Wakfougue","Flunch 2014","Saison 2","Rare"]
[89,"Arthur Bine","Steamer",3,3,3,10,6,"Déferlante","Perce-Armure","1-3","Non","Libre","1 PV 2 PA",1,"Eau","Non","Arrimage","+1 PM","0","Non","Soi-même","2 PM",1,"Soin","Non",null,null,null,null,null,null,null,null,null,null,null,null,null,null,null,null,null,null,"Armure","Hypergame Warriors","Saison 2","Rare"]
[90,"Erik Rak","Enutrof",3,2,4,8,6,"Pelle Tueuse","Aucun",1,"Non","Poing","6 PA",3,"Terre","Non","Aumône","Perce-armure","2-4","Non","Libre","3 PA",1,"Terre","Non",null,null,null,null,null,null,null,null,null,null,null,null,null,null,null,null,null,null,"Esquive","KrosMaster Junior","Saison 2","Rare"]
[91,"Filo Komba","Iop",3,1,3,10,6,"Verdict","Aucun","1-5","Non","Droite","6 PA",2,"Feu","Non","Epée Puissante","Repousse 2","1-3","Non","Droite","3 PA",1,"Feu","Non",null,null,null,null,null,null,null,null,null,null,null,null,null,null,null,null,null,null,"Critique","KrosMaster Junior","Saison 2","Rare"]
[92,"Jayma Gourd","Pandawa",3,3,3,12,6,"Pandatak","Aucun",1,"Non","Poing","3 PA",2,"Air","Non","Vague à Lame","Vol de Vie","1-2","Non","Droite","5 PA",2,"Air","Non",null,null,null,null,null,null,null,null,null,null,null,null,null,null,null,null,null,null,"Tacle","KrosMaster Junior","Saison 2","Rare"]
[93,"Mytik Tak","Xélor",3,4,3,6,7,"Gelure","Aucun","3-6","Non","Libre","3 PA",1,"Eau","Non","Rayon Nébuleux","Zone Croix","3-5","Non","Droite","4 PA",1,"Eau","Non",null,null,null,null,null,null,null,null,null,null,null,null,null,null,null,null,null,null,"Armure","KrosMaster Junior","Saison 2","Rare"]
[94,"Terminatot Stasis","Terminatot - Boss",3,7,3,10,6,"Frappe de Stasis","Vol de Vie","1-2","Oui","Droite","3 PA",1,"Air","Non","Incursion","+1 PM","0-1","Oui","Normale","3 PA",0,"Neutre","1/tour",null,null,null,null,null,null,null,null,null,null,null,null,null,null,null,null,null,null,"Critique, Tacle","Offre cadeau Ankama","Saison 2","Rare"]
[95,"Terminatot Wakfu","Terminatot - Boss",3,7,3,10,6,"Frappe de Wakfu","Perce-Armure","1-2","Oui","Droite","3 PA",1,"Eau","Non","Toucher du Boss","+1 PA","0-1","Oui","Normale","3 PA",0,"Soin","1/tour",null,null,null,null,null,null,null,null,null,null,null,null,null,null,null,null,null,null,"Armure, Esquive","Offre cadeau Ankama","Saison 2","Rare"]
[96,"Korbax","Justicier - Multiman",2,4,3,5,5,"Nimbo Stratus","Vindicte 2 : -1 PM","2-6","Oui","Normale","5 PA",1,"Air","Non","Souitche","Echange de position avec le Multiman ciblé","2-4","Non","Normale","3 PA","Aucun","Aucun","Non",null,null,null,null,null,null,null,null,null,null,null,null,null,null,null,null,null,null,"Sang de Corbac","Pack Multiman","Saison 2","Spéciale"]
[97,"Lumino","Justicier - Multiman",2,6,4,4,6,"Kazam","Vindicte 6 : Zone Croix, Perce-Armure","2-4","Oui","Libre","4 PA",1,"Neutre","Non","Tambourino","Soigne +2 au multiman ciblé","0-2","Oui","Libre","2 PA",2,"Soin","1/partie",null,null,null,null,null,null,null,null,null,null,null,null,null,null,null,null,null,null,"Sang de Firefoux","Pack Multiman","Saison 2","Spéciale"]
[98,"Masse","Justicier - Multiman",2,4,2,9,6,"Marbus Fractus","Vindicte 2 : Zone Pelle, Attire la cible de 1 case",1,"Non","Poing","4 PA",1,"Terre","Non","Déflorage","+2 PM au multiman ciblé","1","Non","Poing","1 PM 5 PA","Aucun","Aucun","Non",null,null,null,null,null,null,null,null,null,null,null,null,null,null,null,null,null,null,"Sang d'Abraknyde","Pack Multiman","Saison 2","Spéciale"]
[99,"Ombre","Vilain - Multiman",2,2,3,7,7,"Cartilage","Revanche 2 : Zone bâton, Vol de Vie",1,"Non","Poing","3 PA",1,"Neutre","Non","Diabolo Chiste","Inflige +2 dommages neutre au justicier ciblé","1-2","Non","Droite","4 PA",2,"Neutre","Non",null,null,null,null,null,null,null,null,null,null,null,null,null,null,null,null,null,null,"Sang des Ténèbres","Pack Multiman","Saison 2","Spéciale"]
[100,"Scoreur","Justicier - Multiman",2,4,3,8,6,"Asphalte","Vindicte 3 : -1 PA","1-3","Oui","Normale","1 PV 3 PA",1,"Feu","Non","Scorification","+3 PA au Multiman ciblé","1-3","Oui","Normale","2 PV 5 PA","Aucun","Aucun","Non",null,null,null,null,null,null,null,null,null,null,null,null,null,null,null,null,null,null,"Sang de Scarafeuille","Pack Multiman","Saison 2","Spéciale"]
[101,"Skale","Justicier - Multiman",2,4,3,6,6,"Betane","Vindicte 3 : Skale se rapproche de 3 cases","1-4","Oui","Droite","6 PA",3,"Eau","Non","Samourashi","Jouer à pile ou face; Pile : Vole 2PM au multiman ciblé, Face : Vole 3 PA au multiman ciblé","1-2","Oui","Droite","3 PA","Aucun","Aucun","Non",null,null,null,null,null,null,null,null,null,null,null,null,null,null,null,null,null,null,"Sang de Kralamour","Pack Multiman","Saison 2","Spéciale"]
[102,"Terminatot Gaulde","Terminator - Boss - Ultime",3,7,3,10,6,"Découpage","-1 PM -1 PA, Perce-Armure, Vol de Vie",1,"Non","Poing","4 PA",1,"Terre","Non","Krosmo-Fulgur","+2 dommage feu si cible = Terminatot ET +2 dommages feu si cible = Boss","1-2","Non","Droite","2 PA",2,"Feu","1/partie",null,null,null,null,null,null,null,null,null,null,null,null,null,null,null,null,null,null,"Critique, Armure, Esquive, Tacle","Tournois TOT","Saison 2","Rare"]
[103,"Kriss la Krass",null,null,null,null,null,null,null,null,null,null,null,null,null,null,null,null,null,null,null,null,null,null,null,null,null,null,null,null,null,null,null,null,null,null,null,null,null,null,null,null,null,null,null,"Pack Dark Heroes","Saison 3","Rare"]
[104,"Djaul",null,null,null,null,null,null,null,null,null,null,null,null,null,null,null,null,null,null,null,null,null,null,null,null,null,null,null,null,null,null,null,null,null,null,null,null,null,null,null,null,null,null,null,"Pack Dark Heroes","Saison 3","Rare"]
[105,"Corbeau Noir",null,null,null,null,null,null,null,null,null,null,null,null,null,null,null,null,null,null,null,null,null,null,null,null,null,null,null,null,null,null,null,null,null,null,null,null,null,null,null,null,null,null,null,"Pack Dark Heroes","Saison 3","Rare"]
[106,"Dark Vlad",null,null,null,null,null,null,null,null,null,null,null,null,null,null,null,null,null,null,null,null,null,null,null,null,null,null,null,null,null,null,null,null,null,null,null,null,null,null,null,null,null,null,null,"Pack Dark Heroes","Saison 3","Rare"]
[107,"Vampyro",null,null,null,null,null,null,null,null,null,null,null,null,null,null,null,null,null,null,null,null,null,null,null,null,null,null,null,null,null,null,null,null,null,null,null,null,null,null,null,null,null,null,null,"Pack Dark Heroes","Saison 3","Rare"]
[108,"Katar",null,null,null,null,null,null,null,null,null,null,null,null,null,null,null,null,null,null,null,null,null,null,null,null,null,null,null,null,null,null,null,null,null,null,null,null,null,null,null,null,null,null,null,"Pack Dark Heroes","Saison 3","Rare"]
[109,"Reine des Voleurs",null,null,null,null,null,null,null,null,null,null,null,null,null,null,null,null,null,null,null,null,null,null,null,null,null,null,null,null,null,null,null,null,null,null,null,null,null,null,null,null,null,null,null,"Duel Pack 2","Saison 3","Rare"]
[110,"Roi Nidas",null,null,null,null,null,null,null,null,null,null,null,null,null,null,null,null,null,null,null,null,null,null,null,null,null,null,null,null,null,null,null,null,null,null,null,null,null,null,null,null,null,null,null,"Duel Pack 2","Saison 3","Rare"]